Workbook

Sheet Calcs
AB2: Revision 2.07 082125 | BA2: Times
BA3: 24 | BB3: 5 | BD3: 0 | BE3: <- this is the checkbox status on form 2
BA4: 48 | BB4: 15
BA5: 60 | BB5: 20
BA6: 72 | BB6: 30
BA7: 90
B8: Project Name: | F8: Latitude
J11: 24 | T11: Yes | BA11: Yes
BA12: No
J13: 5 | T13: Yes | BD13: Board Counting | BK13: For NAC V-drop calcs | BN13: Class A/B (0=B 1=A)
BA14: Class B | BB14: 4 | BD14: =IF(T11="YES",1,0) -> 1 | BE14: MG? | BK14: =H15 -> 0 | BL14: NAC 1 | BN14: =IF(E15=BA14,0,1) -> 0
C15: NAC 1 | E15: Class B | H15: 0 | J15: amps | L15: =IF(H15>2.5,"You have exceeded the 2.5 amp limit !","") ->  | BA15: Class A | BB15: 8 | BD15: =H30 -> 2 | BE15: SLC? | BK15: =IF(E17=BA14,H17,0) -> 0 | BL15: NAC 2 | BN15: =IF(E17=BA14,0,1) -> 0
BD16: =H32 -> 0 | BE16: Other? | BK16: =H19 -> 0 | BL16: NAC 3 | BN16: =IF(E19=BA14,0,1) -> 0
C17: NAC 2 | E17: =E15 -> Class B | H17: 0 | J17: amps | L17: =IF(H17>2.5,"You have exceeded the 2.5 amp limit !","") ->  | S17: =IF(AND(E15=BA15,H17>0),"NAC 2 is Class A. Do not enter alarm current. Set NAC 2 as 0 amps.","") ->  | BB17: 1 | BC17: 0 | BD17: =BD14+BD15+BD16 -> 3 | BE17: Total plug in boards | BK17: =IF(E21=BA14,H21,0) -> 0 | BL17: NAC 4 | BN17: =IF(E21=BA14,0,1) -> 0
BB18: 2 | BC18: 1
C19: NAC 3 | E19: Class B | H19: 0 | J19: amps | L19: =IF(H19>2.5,"You have exceeded the 2.5 amp limit !","") ->  | BB19: 3 | BC19: 2 | BD19: =H28 -> 4 | BE19: number of slots
BB20: 4 | BC20: 3
C21: NAC 4 | E21: =E19 -> Class B | H21: 0 | J21: amps | L21: =IF(H21>2.5,"You have exceeded the 2.5 amp limit !","") ->  | S21: =IF(AND(E19=BA15,H21>0),"NAC 4 is Class A. Do not enter alarm current. Set NAC 4 as 0 amps.","") ->  | BB21: 5 | BC21: 4
BB22: 6 | BC22: 5
BB23: 7 | BC23: 6
B24: Standby Aux Power (total) | H24: 0 | J24: amps | L24: =IF(H24>1.79,"NOTE - Do not exceed a maximum of 0.9 amps per Aux Power circuit!","") ->  | BB24: 8
BA25: 10.25
B26: Alarm Aux Power (total) | H26: 0 | J26: amps | L26: =IF(H26>1.79,"NOTE - Do not exceed a maximum of 0.9 amps per Aux Power circuit!","") ->  | BA26: 5.25
B28: Plug-In Slot Capacity | H28: 4 | L28: =IF(BD17>BD19,"You have more Plug-In Boards than the Panel can Support!","") -> 
B30: Number of SLC Boards | H30: 2 | BA30: =H30 -> 2 | BB30: <- this is the number of SLC loop cards
B32: 16 I/O, Relay, or NAC Boards | H32: 0
B34: Total # of Plug-In Boards | H34: =BD17 -> 3 | J34: SLC, MG, 16-Channel I/O, Relay, NAC
BA36: slc board logic stuff is here | BE36: Only
BA37: =IF(D43>0,1,0) -> 0 | BB37: =IF(P43>0,1,0) -> 0 | BC37: =BA37+BB37 -> 0 | BD37: 3&4 | BE37: =H30 -> 2
B38: SLC 1 | D38: Standby | G38: Alarm | N38: SLC 2 | P38: Standby | S38: Alarm | BA38: =IF(D47>0,1,0) -> 0 | BB38: =IF(P47>0,1,0) -> 0 | BC38: =BA38+BB38 -> 0 | BD38: 5&6 | BE38: SLC Board is Installed. | BH38: =CONCATENATE(BE36,BE37,BE38) -> Only 2 SLC Board is Installed.
D39: =SLC1_and_SLC2!AE51 -> 0 | F39: mA | G39: =SLC1_and_SLC2!AF51 -> 0 | J39: mA | P39: =SLC1_and_SLC2!AH51 -> 0 | R39: mA | S39: =SLC1_and_SLC2!AI51 -> 0 | V39: mA | BA39: =IF(D51>0,1,0) -> 0 | BB39: =IF(P51>0,1,0) -> 0 | BC39: 0 | BD39: 7&8
BA40: =IF(D55>0,1,0) -> 0 | BB40: =IF(P55>0,1,0) -> 0 | BC40: 0 | BD40: 9&10
BA41: =IF(D59>0,1,0) -> 0 | BB41: =IF(P59>0,1,0) -> 0 | BC41: 0 | BD41: 11&12 | BE41: SLC Boards are installed. | BH41: =CONCATENATE(BE36,BE37,BE41) -> Only 2 SLC Boards are installed.
B42: SLC 3 | D42: Standby | G42: Alarm | N42: SLC 4 | P42: Standby | S42: Alarm | X42: =IF(AND(H30<2,BC37>0),BH38,"") ->  | BA42: =IF(D63>0,1,0) -> 0 | BB42: =IF(P63>0,1,0) -> 0 | BC42: 0 | BD42: 13&14
D43: =SLC3_and_SLC4!AE51 -> 0 | F43: mA | G43: =SLC3_and_SLC4!AF51 -> 0 | J43: mA | P43: =SLC3_and_SLC4!AH51 -> 0 | R43: mA | S43: =SLC3_and_SLC4!AI51 -> 0 | V43: mA | BA43: =IF(D67>0,1,0) -> 0 | BB43: =IF(P67>0,1,0) -> 0 | BC43: 0 | BD43: 15&16 | BH43: =IF(BE37<2,BH38,BH41) -> Only 2 SLC Boards are installed.
B46: SLC 5 | D46: Standby | G46: Alarm | N46: SLC 6 | P46: Standby | S46: Alarm | X46: =IF(AND(H30<3,BC38>0),BH43,"") -> 
D47: =SLC5_and_SLC6!AE51 -> 0 | F47: mA | G47: =SLC5_and_SLC6!AF51 -> 0 | J47: mA | P47: =SLC5_and_SLC6!AH51 -> 0 | R47: mA | S47: =SLC5_and_SLC6!AI51 -> 0 | V47: mA
B50: SLC 7 | D50: Standby | G50: Alarm | N50: SLC 8 | P50: Standby | S50: Alarm | X50: =IF(AND(H30<4,BC39>0),BH43,"") -> 
D51: =SLC7_and_SLC8!AE51 -> 0 | F51: mA | G51: =SLC7_and_SLC8!AF51 -> 0 | J51: mA | P51: =SLC7_and_SLC8!AH51 -> 0 | R51: mA | S51: =SLC7_and_SLC8!AI51 -> 0 | V51: mA
BA53: SLC Board Count | BE53: Panel in amps
B54: SLC 9 | D54: Standby | G54: Alarm | N54: SLC 10 | P54: Standby | S54: Alarm | X54: =IF(AND(H30<5,BC40>0),BH43,"") ->  | BA54: =IF(D39>0,1,0) -> 0 | BB54: 1 | BE54: Standby | BF54: Alarm
D55: =SLC9_and_SLC10!$AE$51 -> 0 | F55: mA | G55: =SLC9_and_SLC10!$AF$51 -> 0 | J55: mA | P55: =SLC9_and_SLC10!$AH$51 -> 0 | R55: mA | S55: =SLC9_and_SLC10!$AI$51 -> 0 | V55: mA | BA55: =IF(P39>0,1,0) -> 0 | BB55: 2 | BE55: 0.36 | BF55: 0.655
BA56: =IF(D43>0,1,0) -> 0 | BB56: 3 | BE56: =IF(T11="Yes",0.125,0) -> 0.125 | BF56: =BE56 -> 0.125 | BG56: media gateway | BI56: 0.114
BA57: =IF(P43>0,1,0) -> 0 | BB57: 4 | BE57: =IF(T13="Yes",0.085,0) -> 0.085 | BF57: =IF(T13="Yes",0.085,0) -> 0.085 | BG57: network card | BI57: 0.08
B58: SLC 11 | D58: Standby | G58: Alarm | N58: SLC 12 | P58: Standby | S58: Alarm | X58: =IF(AND(H30<6,BC41>0),BH43,"") ->  | BA58: =IF(D47>0,1,0) -> 0 | BB58: 5 | BE58: =BE55+BE56+BE57 -> 0.57 | BF58: =BF55+BF56+BF57 -> 0.865 | BG58: <- totals
D59: =SLC11_and_SLC12!AE51 -> 0 | F59: mA | G59: =SLC11_and_SLC12!AF51 -> 0 | J59: mA | P59: =SLC11_and_SLC12!AH51 -> 0 | R59: mA | S59: =SLC11_and_SLC12!AI51 -> 0 | V59: mA | BA59: =IF(P47>0,1,0) -> 0 | BB59: 6
BA60: =IF(D51>0,1,0) -> 0 | BB60: 7
BA61: =IF(P51>0,1,0) -> 0 | BB61: 8 | BE61: other plug in boards | BI61: SLC
B62: SLC 13 | D62: Standby | G62: Alarm | N62: SLC 14 | P62: Standby | S62: Alarm | X62: =IF(AND(H30<7,BC42>0),BH43,"") ->  | BA62: =IF(D55>0,1,0) -> 0 | BB62: 9 | BE62: =H32 -> 0 | BI62: standby | BK62: alarm | BL62: loop#
D63: =SLC13_and_SLC14!AE51 -> 0 | F63: mA | G63: =SLC13_and_SLC14!AF51 -> 0 | J63: mA | P63: =SLC13_and_SLC14!AH51 -> 0 | R63: mA | S63: =SLC13_and_SLC14!AI51 -> 0 | V63: mA | BA63: =IF(P55>0,1,0) -> 0 | BB63: 10 | BE63: standby | BF63: alarm | BI63: =D39 -> 0 | BK63: =G39 -> 0 | BL63: 1
BA64: =IF(D59>0,1,0) -> 0 | BB64: 11 | BE64: =BE62*0.6 -> 0 | BF64: =BE62*0.7 -> 0 | BI64: =P39 -> 0 | BK64: =S39 -> 0 | BL64: 2
BA65: =IF(P59>0,1,0) -> 0 | BB65: 12 | BI65: =D43 -> 0 | BK65: =G43 -> 0 | BL65: 3
B66: SLC 15 | D66: Standby | G66: Alarm | N66: SLC 16 | P66: Standby | S66: Alarm | X66: =IF(AND(H30<8,BC43>0),BH43,"") ->  | BA66: =IF(D63>0,1,0) -> 0 | BB66: 13 | BI66: =P43 -> 0 | BK66: =S43 -> 0 | BL66: 4
D67: =SLC15_and_SLC16!AE51 -> 0 | F67: mA | G67: =SLC15_and_SLC16!AF51 -> 0 | J67: mA | P67: =SLC15_and_SLC16!AH51 -> 0 | R67: mA | S67: =SLC15_and_SLC16!AI51 -> 0 | V67: mA | BA67: =IF(P63>0,1,0) -> 0 | BB67: 14 | BE67: NACs | BI67: =D47 -> 0 | BK67: =G47 -> 0 | BL67: 5
BA68: =IF(D67>0,1,0) -> 0 | BB68: 15 | BI68: =P47 -> 0 | BK68: =S47 -> 0 | BL68: 6
BA69: =IF(P67>0,1,0) -> 0 | BB69: 16 | BE69: Yes | BI69: =D51 -> 0 | BK69: =G51 -> 0 | BL69: 7
BE70: No | BI70: =P51 -> 0 | BK70: =S51 -> 0 | BL70: 8
BA71: =SUM(BA54:BA69) -> 0 | BB71: =H30*0.115 -> 0.23 | BI71: =D55 -> 0 | BK71: =G55 -> 0 | BL71: 9
B72: Power Supply | H72: 5.25 | BI72: =P55 -> 0 | BK72: =S55 -> 0 | BL72: 10
T73: Standby | X73: Alarm | BI73: =D59 -> 0 | BK73: =G59 -> 0 | BL73: 11
BI74: =P59 -> 0 | BK74: =S59 -> 0 | BL74: 12
B75: Is NAC 1 used for Aux Power? | H75: No | N75: Control Panel | T75: =BE58 -> 0.57 | X75: =BF58 -> 0.865 | AA75: amps | BE75: standby | BF75: alarm | BI75: =D63 -> 0 | BK75: =G63 -> 0 | BL75: 13
BE76: =IF(H75="Yes",H15,0) -> 0 | BF76: =H15 -> 0 | BI76: =P63 -> 0 | BK76: =S63 -> 0 | BL76: 14
B77: Is NAC 2 used for Aux Power? | H77: No | J77: =IF(E17="Class A"," NAC 2 is Class A.","") ->  | N77: Aux Power | T77: =H24 -> 0 | X77: =H26 -> 0 | AA77: amps | BE77: =IF(H77="Yes",H17,0) -> 0 | BF77: =H17 -> 0 | BI77: =D67 -> 0 | BK77: =G67 -> 0 | BL77: 15
BE78: =IF(H79="Yes",H19,0) -> 0 | BF78: =H19 -> 0 | BI78: =P67 -> 0 | BK78: =S67 -> 0 | BL78: 16
B79: Is NAC 3 used for Aux Power? | H79: No | N79: SLC Boards | T79: =BB71 -> 0.23 | X79: =BB71 -> 0.23 | AA79: amps | BE79: =IF(H81="Yes",H21,0) -> 0 | BF79: =H21 -> 0
BA80: PSU max output
B81: Is NAC 4 used for Aux Power? | H81: No | J81: =IF(E21="Class A"," NAC 4 is Class A.","") ->  | N81: Other Plug-In Boards | T81: =BE64 -> 0 | X81: =BF64 -> 0 | AA81: amps | AX81: 5.25A | BA81: =IF(AND(H72=BA26,T99>4),"You have exceeded the power supply maximum output!","") ->  | BI81: =SUM(BI63:BI78)*2.75 -> 0 | BK81: =SUM(BK63:BK78)*1.75 -> 0 | BL81: Total in ma
N83: 4-Channel NAC Boards | T83: 0 | X83: 0 | AA83: amps | AX83: 10.25A | BA83: =IF(AND(H72=BA25,T99>8),"You have exceeded the power supply maximum output!","") ->  | BE83: PSU | BI83: =BI81/1000 -> 0 | BK83: =BK81/1000 -> 0 | BL83: adjust to amps
N85: NAC 1 | T85: =BE76 -> 0 | X85: =BF76 -> 0 | AA85: amps | AY85: 5.25A | BA85: =IF(AND(H72=BA26,T105>60),1,0) -> 0 | BI85: =ROUNDUP(BI83,4) -> 0 | BK85: =ROUNDUP(BK83,4) -> 0 | BL85: FINAL TOTAL FOR ALL SLC HERE
N87: NAC 2 | T87: =BE77 -> 0 | X87: =BF77 -> 0 | AA87: amps | AY87: 10.25A | BA87: =IF(AND(H72=BA25,T105>100),1,0) -> 0
N89: NAC 3 | T89: =BE78 -> 0 | X89: =BF78 -> 0 | AA89: amps | BA89: =BA85+BA87 -> 0 | BE89: 1.2
BE90: 1.25
N91: NAC 4 | T91: =BE79 -> 0 | X91: =BF79 -> 0 | AA91: amps
B93: Battery Correction Factor | H93: 1.25 | N93: SLC Device Current (total) | T93: =ROUNDUP(BI83,4) -> 0 | X93: =ROUNDUP(BK83,4) -> 0 | AA93: amps | BE93: alarm time calc
BE94: =J13/60 -> 0.08333333333
B99: =IF(H72=BA26,BA81,BA83) ->  | N99: Total Load | T99: =SUM(T75,T77,T79,T81,T83,T85,T87,T89,T91,T93,T95) -> 0.8 | X99: =SUM(X75,X77,X79,X81,X83,X85,X87,X89,X91,X93,X95) -> 1.095 | AA99: amps
N101: Standby and Alarm Time | T101: =J11 -> 24 | X101: =BE94 -> 0.08333333333 | BE101: =IF(H93=BE89,"20% "," 25% ") -> 25%
N103: Sub Total | T103: =ROUNDUP(T99*T101,1) -> 19.2 | X103: =ROUNDUP(X99*X101,1) -> 0.1 | AA103: Ah | BF103: Minimum Battery Size with
J105: =BF107 -> Minimum Battery Size with 25% Correction Factor | T105: =ROUNDUP(BF109*H93,2) -> 24.13 | BF105: Correction Factor
J107: =BF117 -> Maximum Battery Size for the 5.25 Amp Power Supply - | T107: =BF119 -> 60 | W107: Ah | BF107: =CONCATENATE(BF103,BE101,BF105) -> Minimum Battery Size with 25% Correction Factor
BF109: =T103+X103 -> 19.3 | BG109: <- this is total Ah before correction factor
BE112: =H72 -> 5.25
BF113: Maximum Battery Size for the
BF115: Amp Power Supply -
BF117: =CONCATENATE(BF113,BE112,BF115) -> Maximum Battery Size for the 5.25 Amp Power Supply -
BF119: =IF(H72=5.25,"60","100") -> 60

Sheet NAC Voltage Drop
B2: Voltage Drop Calculations for Notification Appliance Circuits
AF3: k/ft | AG3: km
B4: Project Name | E4: =Calcs!F8 -> Latitude | AE4: #12 Solid, Coated | AF4: 2.01 | AG4: 6.57
AE5: #12 Stranded, Coated | AF5: 2.05 | AG5: 6.73
B6: This sheet will calculate the end of line voltage on the Notification Appliance Circuits. | AE6: #14 Solid, Coated | AF6: 3.19 | AG6: 10.4
B7: You must enter the total NAC load on the main Battery Calculator page. The total load is calculated at the end of the circuit. | AE7: #14 Stranded, Coated | AF7: 3.26 | AG7: 10.7
B8: The resistance for AWG wire is from the NEC for uncoated copper wire at 75°C (Chapter 9, Table 8). | AE8: #16 Solid, Coated | AF8: 5.08 | AG8: 16.7 | AI8: Enter 1-Way Wire Length in
AC9: mtrs or ft | AE9: #16 Stranded, Coated | AF9: 5.29 | AG9: 17.3 | AI9: =IF(AC10=TRUE, "Meters","Feet") -> Feet
C10: Meters? | AC10: FALSE | AE10: #18 Solid, Coated | AF10: 8.08 | AG10: 26.5 | AI10: =CONCATENATE(AI8,AI9) -> Enter 1-Way Wire Length in Feet
AE11: #18 Stranded, Coated | AF11: 8.45 | AG11: 27.7
AC12: =IF(AC10=TRUE,"Ohms per km","Ohms per 1k Ft") -> Ohms per 1k Ft | AE12: #12 Solid | AF12: 1.93 | AG12: 6.34
B13: NAC 1 | AE13: #12 Stranded | AF13: 1.98 | AG13: 6.5
AC14: 24 | AE14: #14 Solid | AF14: 3.07 | AG14: 10.1
B15: =Calcs!BK14 -> 0 | E15: NAC 1 Load (from Calcs Sheet) | AC15: 22 | AE15: #14 Stranded | AF15: 3.14 | AG15: 10.3
AC16: 20.4 | AE16: #16 Solid | AF16: 4.89 | AG16: 16
B17: #14 Solid | E17: Select Wire Size and Type | AE17: #16 Stranded | AF17: 4.99 | AG17: 16.4
AE18: #18 Solid | AF18: 7.77 | AG18: 25.5
B19: 250 | E19: =AI10 -> Enter 1-Way Wire Length in Feet | AE19: #18 Stranded | AF19: 7.95 | AG19: 26.1
AE20: 2.5 mm wire | AF20: 5 | AG20: 5 | AK20: k/ft | AL20: km
B21: 20.4 | E21: NAC Voltage at Panel | K21: - Usually set as 20.4 VDC, which is 85% of 24 volts | AE21: 1.0 mm wire | AF21: 7 | AG21: 7 | AI21: NAC1 | AJ21: =B17 -> #14 Solid | AK21: =IF(AJ21=AE12,AF12,0) -> 0 | AL21: =IF(AJ21=AE12,AG12,0) -> 0 | AM21: #12 Solid | AN21: AE12
AK22: =IF(AJ21=AE13,AF13,0) -> 0 | AL22: =IF(AJ21=AE13,AG13,0) -> 0 | AM22: #12 Stranded | AN22: AE13
B23: =ROUNDUP(AK34,2) -> 1.54 | E23: Wire Resistance in Ohms | AK23: =IF(AJ21=AE14,AF14,0) -> 3.07 | AL23: =IF(AJ21=AE14,AG14,0) -> 10.1 | AM23: #14 Solid | AN23: AE14
AK24: =IF(AJ21=AE15,AF15,0) -> 0 | AL24: =IF(AJ21=AE15,AG15,0) -> 0 | AM24: #14 Stranded | AN24: AE15
B25: =ROUNDDOWN(AK37,2) -> 20.4 | E25: End of Line Voltage | AK25: =IF(AJ21=AE16,AF16,0) -> 0 | AL25: =IF(AJ21=AE16,AG16,0) -> 0 | AM25: #16 Solid | AN25: AE16
AC26: NAC2 Class A | AK26: =IF(AJ21=AE17,AF17,0) -> 0 | AL26: =IF(AJ21=AE17,AG17,0) -> 0 | AM26: #16 Stranded | AN26: AE17
AC27: =Calcs!BN15 -> 0 | AK27: =IF(AJ21=AE18,AF18,0) -> 0 | AL27: =IF(AJ21=AE18,AG18,0) -> 0 | AM27: #18 Solid | AN27: AE18
B28: NAC 2 | D28: =IF(AC27=1," NAC 2 is Class A. Voltage drop is calculated on NAC 1.","") ->  | AK28: =IF(AJ21=AE19,AF19,0) -> 0 | AL28: =IF(AJ21=AE19,AG19,0) -> 0 | AM28: #18 Stranded | AN28: AE19
AC29: NAC4 Class A | AK29: =IF(AJ21=AE20,AF20,0) -> 0 | AL29: =AK29 -> 0 | AM29: =AE20 -> 2.5 mm wire | AN29: AE20
B30: =IF(AC27=0,Calcs!H17,0) -> 0 | E30: NAC 2 Load (from Calcs Sheet) | AC30: =Calcs!BN17 -> 0 | AK30: =IF(AJ21=AE21,AF21,0) -> 0 | AL30: =AK30 -> 0 | AM30: =AE21 -> 1.0 mm wire | AN30: AE21
B32: #14 Solid | E32: Select Wire Size and Type | AK32: =SUM(AK21:AK30) -> 3.07 | AL32: =SUM(AL21:AL30) -> 10.1 | AM32: Wire R
AJ33: wire length | AK33: total wire R, kft or km
B34: 250 | E34: =AI10 -> Enter 1-Way Wire Length in Feet | AJ34: =B19*2 -> 500 | AK34: =IF(AC10=FALSE,AJ34*AK32/1000,AJ34*AL32/1000) -> 1.535
B36: 20.4 | E36: NAC Voltage at Panel | K36: - Usually set as 20.4 VDC, which is 85% of 24 volts | AJ36: voltage drop | AK36: =B15*AK34 -> 0 | AM36: Vd=I*R
AJ37: EOL voltage | AK37: =B21-AK36 -> 20.4
B38: =ROUNDUP(AK56,2) -> 1.54 | E38: Wire Resistance in Ohms
B40: =ROUNDDOWN(AK59,2) -> 20.4 | E40: End of Line Voltage
AK42: k/ft | AL42: km | AT42: k/ft | AU42: km
B43: NAC 3 | AI43: NAC2 | AJ43: =B32 -> #14 Solid | AK43: =IF(AJ43=AE12,AF12,0) -> 0 | AL43: =IF(AJ43=AE12,AG12,0) -> 0 | AM43: #12 Solid | AN43: AE12 | AR43: NAC3 | AS43: =B47 -> #14 Solid | AT43: =IF(AS43=AE12,AF12,0) -> 0 | AU43: =IF(AS43=AE12,AG12,0) -> 0 | AV43: #12 Solid | AW43: AE12
AK44: =IF(AJ43=AE13,AF13,0) -> 0 | AL44: =IF(AJ43=AE13,AG13,0) -> 0 | AM44: #12 Stranded | AN44: AE13 | AT44: =IF(AS43=AE13,AF13,0) -> 0 | AU44: =IF(AS43=AE13,AG13,0) -> 0 | AV44: #12 Stranded | AW44: AE13
B45: =IF(AC42=0,Calcs!H19,0) -> 0 | E45: NAC 3 Load (from Calcs Sheet) | AK45: =IF(AJ43=AE14,AF14,0) -> 3.07 | AL45: =IF(AJ43=AE14,AG14,0) -> 10.1 | AM45: #14 Solid | AN45: AE14 | AT45: =IF(AS43=AE14,AF14,0) -> 3.07 | AU45: =IF(AS43=AE14,AG14,0) -> 10.1 | AV45: #14 Solid | AW45: AE14
AK46: =IF(AJ43=AE15,AF15,0) -> 0 | AL46: =IF(AJ43=AE15,AG15,0) -> 0 | AM46: #14 Stranded | AN46: AE15 | AT46: =IF(AS43=AE15,AF15,0) -> 0 | AU46: =IF(AS43=AE15,AG15,0) -> 0 | AV46: #14 Stranded | AW46: AE15
B47: #14 Solid | E47: Select Wire Size and Type | AK47: =IF(AJ43=AE16,AF16,0) -> 0 | AL47: =IF(AJ43=AE16,AG16,0) -> 0 | AM47: #16 Solid | AN47: AE16 | AT47: =IF(AS43=AE16,AF16,0) -> 0 | AU47: =IF(AS43=AE16,AG16,0) -> 0 | AV47: #16 Solid | AW47: AE16
AK48: =IF(AJ43=AE17,AF17,0) -> 0 | AL48: =IF(AJ43=AE17,AG17,0) -> 0 | AM48: #16 Stranded | AN48: AE17 | AT48: =IF(AS43=AE17,AF17,0) -> 0 | AU48: =IF(AS43=AE17,AG17,0) -> 0 | AV48: #16 Stranded | AW48: AE17
B49: 250 | E49: =AI10 -> Enter 1-Way Wire Length in Feet | AK49: =IF(AJ43=AE18,AF18,0) -> 0 | AL49: =IF(AJ43=AE18,AG18,0) -> 0 | AM49: #18 Solid | AN49: AE18 | AT49: =IF(AS43=AE18,AF18,0) -> 0 | AU49: =IF(AS43=AE18,AG18,0) -> 0 | AV49: #18 Solid | AW49: AE18
AK50: =IF(AJ43=AE19,AF19,0) -> 0 | AL50: =IF(AJ43=AE19,AG19,0) -> 0 | AM50: #18 Stranded | AN50: AE19 | AT50: =IF(AS43=AE19,AF19,0) -> 0 | AU50: =IF(AS43=AE19,AG19,0) -> 0 | AV50: #18 Stranded | AW50: AE19
B51: 20.4 | E51: NAC Voltage at Panel | K51: - Usually set as 20.4 VDC, which is 85% of 24 volts | AK51: =IF(AJ43=AE20,AF20,0) -> 0 | AL51: =AK51 -> 0 | AM51: =AE42 -> 0 | AN51: AE20 | AT51: =IF(AS43=AE20,AF20,0) -> 0 | AU51: =AT51 -> 0 | AV51: =AN42 -> 0 | AW51: AE20
AK52: =IF(AJ43=AE21,AF21,0) -> 0 | AL52: =AK52 -> 0 | AM52: =AE43 -> 0 | AN52: AE21 | AT52: =IF(AS43=AE21,AF21,0) -> 0 | AU52: =AT52 -> 0 | AV52: =AN43 -> AE12 | AW52: AE21
B53: =ROUNDUP(AT56,2) -> 1.54 | E53: Wire Resistance in Ohms
AK54: =SUM(AK43:AK52) -> 3.07 | AL54: =SUM(AL43:AL52) -> 10.1 | AM54: Wire R | AT54: =SUM(AT43:AT52) -> 3.07 | AU54: =SUM(AU43:AU52) -> 10.1 | AV54: Wire R
B55: =ROUNDDOWN(AT59,2) -> 20.4 | E55: End of Line Voltage | AJ55: wire length | AK55: total wire R, kft or km | AS55: wire length | AT55: total wire R, kft or km
AJ56: =B34*2 -> 500 | AK56: =IF(AC10=FALSE,AJ56*AK54/1000,AJ56*AL54/1000) -> 1.535 | AS56: =B49*2 -> 500 | AT56: =IF(AC10=FALSE,AS56*AT54/1000,AS56*AU54/1000) -> 1.535
B58: NAC 4 | D58: =IF(AC30=1,"NAC 4 is Class A. Voltage drop is calculated on NAC 3.","") ->  | AJ58: voltage drop | AK58: =B30*AK56 -> 0 | AS58: voltage drop | AT58: =B45*AT56 -> 0
AJ59: EOL voltage | AK59: =B36-AK58 -> 20.4 | AS59: EOL voltage | AT59: =B51-AT58 -> 20.4
B60: =IF(AC30=0,Calcs!H21,0) -> 0 | E60: NAC 4 Load (from Calcs Sheet)
B62: #14 Solid | E62: Select Wire Size and Type
B64: 250 | E64: =AI10 -> Enter 1-Way Wire Length in Feet
B66: 20.4 | E66: NAC Voltage at Panel | K66: - Usually set as 20.4 VDC, which is 85% of 24 volts
AK67: k/ft | AL67: km
B68: =ROUNDUP(AK81,2) -> 1.54 | E68: Wire Resistance in Ohms | AI68: NAC4 | AJ68: =B62 -> #14 Solid | AK68: =IF(AJ68=AE12,AF12,0) -> 0 | AL68: =IF(AJ68=AE12,AG12,0) -> 0 | AM68: #12 Solid | AN68: AE12
AK69: =IF(AJ68=AE13,AF13,0) -> 0 | AL69: =IF(AJ68=AE13,AG13,0) -> 0 | AM69: #12 Stranded | AN69: AE13
B70: =ROUNDDOWN(AK84,2) -> 20.4 | E70: End of Line Voltage | AK70: =IF(AJ68=AE14,AF14,0) -> 3.07 | AL70: =IF(AJ68=AE14,AG14,0) -> 10.1 | AM70: #14 Solid | AN70: AE14
AK71: =IF(AJ68=AE15,AF15,0) -> 0 | AL71: =IF(AJ68=AE15,AG15,0) -> 0 | AM71: #14 Stranded | AN71: AE15
AK72: =IF(AJ68=AE16,AF16,0) -> 0 | AL72: =IF(AJ68=AE16,AG16,0) -> 0 | AM72: #16 Solid | AN72: AE16
AK73: =IF(AJ68=AE17,AF17,0) -> 0 | AL73: =IF(AJ68=AE17,AG17,0) -> 0 | AM73: #16 Stranded | AN73: AE17
AK74: =IF(AJ68=AE18,AF18,0) -> 0 | AL74: =IF(AJ68=AE18,AG18,0) -> 0 | AM74: #18 Solid | AN74: AE18
AK75: =IF(AJ68=AE19,AF19,0) -> 0 | AL75: =IF(AJ68=AE19,AG19,0) -> 0 | AM75: #18 Stranded | AN75: AE19
AK76: =IF(AJ68=AE20,AF20,0) -> 0 | AL76: =AK76 -> 0 | AM76: =AE67 -> 0 | AN76: AE20
AK77: =IF(AJ68=AE21,AF21,0) -> 0 | AL77: =AK77 -> 0 | AM77: =AE68 -> 0 | AN77: AE21
AK79: =SUM(AK68:AK77) -> 3.07 | AL79: =SUM(AL68:AL77) -> 10.1 | AM79: Wire R
AJ80: wire length | AK80: total wire R, kft or km
AJ81: =B64*2 -> 500 | AK81: =IF(AC10=FALSE,AJ81*AK79/1000,AJ81*AL79/1000) -> 1.535
AJ83: voltage drop | AK83: =B60*AK81 -> 0
AJ84: EOL voltage | AK84: =B66-AK83 -> 20.4

Sheet SLC1_and_SLC2
B2: Devices for SLC 1 and SLC 2
B4: =Calcs!F8 -> Latitude | AB4: all current in milliamps
B7: SLC 1 | M7: SLC 2 | AA7: standby | AB7: alarm | AC7: Maximum | AE7: standby | AF7: alarm | AH7: standby | AI7: alarm | AK7: sub-addresses
B8: Device Type | F8: Quantity | M8: Device Type | Q8: Quantity | AA8: current | AB8: current | AC8: current | AE8: SLC1total | AF8: SLC1total | AH8: SLC2total | AI8: SLC2total | AK8: SLC1 | AM8: SLC2
B9: ALO-V | M9: ALO-V | Z9: alo | AA9: 0.34 | AB9: 0.34 | AC9: 8.5 | AE9: =F9*AA9 -> 0 | AF9: =IF(F9<5,F9*AC9,(F9*AB9)+42.5) -> 0 | AH9: =Q9*AA9 -> 0 | AI9: =IF(Q9<5,Q9*AC9,(Q9*AB9)+42.5) -> 0
B10: ALN-V | M10: ALN-V | Z10: aln | AA10: 0.45 | AB10: 0.7 | AC10: 9.6 | AE10: =F10*AA10 -> 0 | AF10: =F10*AB10 -> 0 | AH10: =Q10*AA10 -> 0 | AI10: =Q10*AB10 -> 0
B11: ALK-V | M11: ALK-V | Z11: alk | AA11: 0.4 | AB11: 10.1 | AC11: 10.1 | AE11: 0 | AF11: 0 | AH11: 0 | AI11: 0
B12: ALG-V | M12: ALG-V | Z12: alg | AA12: 0.4 | AB12: 0.54 | AC12: 17.1 | AE12: 0 | AF12: 0 | AH12: 0 | AI12: 0
B13: ATJ-EA | M13: ATJ-EA | Z13: atj | AA13: 0.35 | AB13: 0.35 | AC13: 17.1 | AE13: 0 | AF13: 0 | AH13: 0 | AI13: 0
B14: ATG-EA | M14: ATG-EA | Z14: atg | AA14: 0.5 | AB14: 0.8 | AC14: 10.1 | AE14: 0 | AF14: 0 | AH14: 0 | AI14: 0
B15: ACA-V | M15: ACA-V | Z15: aca | AA15: 0.45 | AB15: 0.6 | AC15: 19.1 | AE15: 0 | AF15: 0 | AH15: 0 | AI15: 0
B16: ACC-V | M16: ACC-V | Z16: acc | AA16: 0.45 | AB16: 0.65 | AC16: 8.3 | AE16: 0 | AF16: 0 | AH16: 0 | AI16: 0
B17: ACE-V | M17: ACE-V | Z17: ace | AA17: 0.45 | AB17: 0.7 | AC17: 10.1 | AE17: 0 | AF17: 0 | AH17: 0 | AI17: 0
B18: ACD-V | M18: ACD-V | Z18: acd | AA18: 0.6 | AB18: 0.7 | AC18: 10.1 | AE18: 0 | AF18: 0 | AH18: 0 | AI18: 0
AE19: 0 | AF19: 0 | AH19: 0 | AI19: 0
AE20: 0 | AF20: 0 | AH20: 0 | AI20: 0
B21: DH-100A | M21: DH-100 | Z21: dh100 | AA21: 0.45 | AB21: 0.75 | AC21: 10.1 | AE21: 0 | AF21: 0 | AH21: 0 | AI21: 0 | AK21: 2 | AL21: =F21*AK21 -> 0 | AM21: =Q21*AK21 -> 0
B22: DH-99 | M22: DH-99 | Z22: dh99 | AA22: 0.45 | AB22: 0.75 | AC22: 10.1 | AE22: 0 | AF22: 0 | AH22: 0 | AI22: 0 | AK22: 2 | AL22: =F22*AK22 -> 0 | AM22: =Q22*AK22 -> 0
B23: DH-98 | M23: DH-98 | Z23: dh98 | AA23: 0.45 | AB23: 0.75 | AC23: 10.1 | AE23: 0 | AF23: 0 | AH23: 0 | AI23: 0 | AK23: 2 | AL23: 0 | AM23: 0
B24: AMS | M24: AMS | Z24: ams | AA24: 0.45 | AB24: 0.75 | AC24: 5.2 | AE24: 0 | AF24: 0 | AH24: 0 | AI24: 0 | AM24: 0
B25: CZM | M25: CZM | Z25: czm | AA25: 0.45 | AB25: 0.75 | AC25: 4.3 | AE25: 0 | AF25: 0 | AH25: 0 | AI25: 0 | AM25: 0
B26: FRCME | M26: FRCME | Z26: frcme | AA26: 0.6 | AB26: 0.95 | AC26: 0.95 | AE26: 0 | AF26: 0 | AH26: 0 | AI26: 0 | AM26: 0
B27: FRCMA | M27: FRCMA | Z27: frcma | AA27: 0.65 | AB27: 1 | AC27: 5.1 | AE27: 0 | AF27: 0 | AH27: 0 | AI27: 0 | AM27: 0
B28: FRCMA-I | M28: FRCMA-I | Z28: frcma-i | AA28: 0.8 | AB28: 1.1 | AC28: 5.1 | AE28: 0 | AF28: 0 | AH28: 0 | AI28: 0 | AM28: 0
B29: FRCME-M | M29: FRCME-M | Z29: frcme-m | AA29: 0.6 | AB29: 0.9 | AC29: 0.95 | AE29: 0 | AF29: 0 | AH29: 0 | AI29: 0 | AM29: 0
B30: FRCME-P | M30: FRCME-P | Z30: frcme-p | AA30: 0.6 | AB30: 0.9 | AC30: 0.95 | AE30: 0 | AF30: 0 | AH30: 0 | AI30: 0 | AM30: 0
B31: DIMM | M31: DIMM | Z31: dimm | AA31: 1.05 | AB31: 1.1 | AC31: 5.2 | AE31: 0 | AF31: 0 | AH31: 0 | AI31: 0 | AK31: 3 | AL31: =F31*AK31 -> 0 | AM31: 0
B32: R2M | M32: R2M | Z32: r2m | AA32: 0.4 | AB32: 0.4 | AC32: 0.4 | AE32: 0 | AF32: 0 | AH32: 0 | AI32: 0 | AK32: 3 | AL32: =F32*AK32 -> 0 | AM32: 0
B33: R2M-L | M33: R2M-L | Z33: r2ml | AA33: 0.55 | AB33: 0.85 | AC33: 0.85 | AE33: 0 | AF33: 0 | AH33: 0 | AI33: 0 | AK33: 3 | AL33: 0 | AM33: 0
B34: R2M-LI | M34: R2M-LI | Z34: r2mli | AA34: 0.55 | AB34: 0.85 | AC34: 0.85 | AE34: 0 | AF34: 0 | AH34: 0 | AI34: 0 | AK34: 3 | AL34: 0 | AM34: 0
B35: R2M-H | M35: R2M-H | Z35: r2mh | AA35: 0.55 | AB35: 0.85 | AC35: 0.85 | AE35: 0 | AF35: 0 | AH35: 0 | AI35: 0 | AK35: 3 | AL35: 0 | AM35: 0
B36: R2M-HI | M36: R2M-HI | Z36: r2mhi | AA36: 0.55 | AB36: 0.85 | AC36: 0.85 | AE36: 0 | AF36: 0 | AH36: 0 | AI36: 0 | AK36: 3 | AL36: 0 | AM36: 0
B37: SOM | M37: SOM | Z37: som | AA37: 0.2 | AB37: 0.15 | AC37: 0.15 | AE37: 0 | AF37: 0 | AH37: 0 | AI37: 0 | AK37: 2 | AL37: 0 | AM37: 0
B38: SOM-A | M38: SOM-A | Z38: soma | AA38: 0.45 | AB38: 0.8 | AC38: 0.8 | AE38: 0 | AF38: 0 | AH38: 0 | AI38: 0 | AK38: 2 | AL38: 0 | AM38: 0
B39: SOM-AI | M39: SOM-AI | Z39: somai | AA39: 0.45 | AB39: 0.8 | AC39: 0.8 | AE39: 0 | AF39: 0 | AH39: 0 | AI39: 0 | AK39: 2 | AL39: 0 | AM39: 0
B40: ASB/ASB7 | M40: ASB/ASB7 | Z40: asb | AA40: 0.12 | AB40: 0.12 | AC40: 0.12 | AE40: 0 | AF40: 0 | AH40: 0 | AI40: 0 | AM40: 0
B41: ASBL/ASBL7 | M41: ASBL/ASBL7 | Z41: asbl | AA41: 0.4 | AB41: 0.65 | AC41: 0.65 | AE41: 0 | AF41: 0 | AH41: 0 | AI41: 0 | AM41: 0
B42: MIOM (all) | M42: MIOM (all) | Z42: miom | AA42: 1.05 | AB42: 1.1 | AC42: 4.3 | AE42: 0 | AF42: 0 | AH42: 0 | AI42: 0 | AK42: 7 | AL42: 0 | AM42: 0
B43: CLIM1 | M43: CLIM1 | Z43: clim1 | AA43: 0.5 | AB43: 6 | AC43: 6 | AE43: 0 | AF43: 0 | AH43: 0 | AI43: 0 | AK43: 6 | AL43: 0 | AM43: 0
B44: CLIM2 | M44: CLIM2 | Z44: clim2 | AA44: 0.55 | AB44: 6 | AC44: 6 | AE44: 0 | AF44: 0 | AH44: 0 | AI44: 0 | AK44: 11 | AL44: 0 | AM44: 0
B45: SCI Module | M45: SCI Module | Z45: sci | AA45: 0.3 | AB45: 10 | AC45: 10 | AE45: 0 | AF45: =IF(F45>0,20,0) -> 0 | AH45: 0 | AI45: =IF(Q45>0,20,0) -> 0
B46: SCI-B4 / -B6 | M46: SCI-B4 / -B6 | Z46: sci bases | AA46: 0.3 | AB46: 10 | AC46: 10 | AE46: 0 | AF46: =IF(F46>0,20,0) -> 0 | AH46: 0 | AI46: =IF(Q46>0,20,0) -> 0
AL50: SLC1 | AM50: SLC2 | AN50: <- total subaddresses
AA51: SLC1 total | AB51: =F52 -> 0 | AC51: SLC2 total | AD51: =Q52 -> 0 | AE51: =SUM(AE9:AE49) -> 0 | AF51: =IF(SUM(AF9:AF49)=0,0,SUM(AF9:AF49)+0.8) -> 0 | AH51: =SUM(AH9:AH49) -> 0 | AI51: =IF(SUM(AI9:AI49)=0,0,SUM(AI9:AI49)+0.8) -> 0 | AL51: =SUM(AL15:AL44) -> 0 | AM51: =SUM(AM15:AM44) -> 0
B52: Device Total - | F52: =SUM(F9:H39,F42,F43,F44) -> 0 | M52: Device Total - | Q52: =SUM(Q9:S39,Q42,Q43,Q44) -> 0
B54: Total Bases - | F54: =SUM(F40,F41,F46) -> 0 | M54: Total Bases - | Q54: =SUM(Q40,Q41,Q46) -> 0 | AA54: SLC1 | AC54: SLC2
Z55: total detectors | AA55: =SUM(F9:H18) -> 0 | AC55: =SUM(Q9:S18) -> 0
B56: =IF(AA56>AA55,"You have more Sounder Bases/SCI Bases than Detectors on SLC 1!","") ->  | Z56: total bases | AA56: =F54 -> 0 | AC56: =Q54 -> 0
B57: =IF(AC56>AC55,"You have more Sounder Bases/SCI Bases than Detectors on SLC 2!","") ->  | Z57: total device count | AA57: =F52 -> 0 | AC57: =Q52 -> 0
B58: =IF(F52>127,"You have exceeded 127 Devices on SLC 1!","") -> 
B59: =IF(Q52>127,"You have exceeded 127 Devices on SLC 2!","") -> 
B60: =IF(AL51>400,"You have exceeded 400 sub-addresses on SLC 1!","") -> 
B61: =IF(AM51>400,"You have exceeded 400 sub-addresses on SLC 2!","") -> 

Sheet SLC3_and_SLC4
B2: Devices for SLC 3 and SLC 4
B4: =Calcs!F8 -> Latitude | AB4: all current in milliamps
B7: SLC 3 | M7: SLC 4 | AA7: standby | AB7: alarm | AC7: Maximum | AE7: standby | AF7: alarm | AH7: standby | AI7: alarm | AK7: sub-addresses
B8: Device Type | F8: Quantity | M8: Device Type | Q8: Quantity | AA8: current | AB8: current | AC8: current | AE8: SLC3total | AF8: SLC3total | AH8: SLC4total | AI8: SLC4total | AK8: SLC3 | AM8: SLC4
B9: ALO-V | M9: ALO-V | Z9: alo | AA9: 0.34 | AB9: 0.34 | AC9: 8.5 | AE9: =F9*AA9 -> 0 | AF9: =F9*AB9 -> 0 | AH9: =Q9*AA9 -> 0 | AI9: =Q9*AB9 -> 0
B10: ALN-V | M10: ALN-V | Z10: aln | AA10: 0.45 | AB10: 0.7 | AC10: 9.6 | AE10: =F10*AA10 -> 0 | AF10: =F10*AB10 -> 0 | AH10: =Q10*AA10 -> 0 | AI10: =Q10*AB10 -> 0
B11: ALK-V | M11: ALK-V | Z11: alk | AA11: 0.4 | AB11: 10.1 | AC11: 10.1 | AE11: 0 | AF11: 0 | AH11: 0 | AI11: 0
B12: ALG-V | M12: ALG-V | Z12: alg | AA12: 0.4 | AB12: 0.54 | AC12: 17.1 | AE12: 0 | AF12: 0 | AH12: 0 | AI12: 0
B13: ATJ-EA | M13: ATJ-EA | Z13: atj | AA13: 0.35 | AB13: 0.35 | AC13: 17.1 | AE13: 0 | AF13: 0 | AH13: 0 | AI13: 0
B14: ATG-EA | M14: ATG-EA | Z14: atg | AA14: 0.5 | AB14: 0.8 | AC14: 10.1 | AE14: 0 | AF14: 0 | AH14: 0 | AI14: 0
B15: ACA-V | M15: ACA-V | Z15: aca | AA15: 0.45 | AB15: 0.6 | AC15: 19.1 | AE15: 0 | AF15: 0 | AH15: 0 | AI15: 0
B16: ACC-V | M16: ACC-V | Z16: acc | AA16: 0.45 | AB16: 0.65 | AC16: 8.3 | AE16: 0 | AF16: 0 | AH16: 0 | AI16: 0
B17: ACE-V | M17: ACE-V | Z17: ace | AA17: 0.45 | AB17: 0.7 | AC17: 10.1 | AE17: 0 | AF17: 0 | AH17: 0 | AI17: 0
B18: ACD-V | M18: ACD-V | Z18: acd | AA18: 0.6 | AB18: 0.7 | AC18: 10.1 | AE18: 0 | AF18: 0 | AH18: 0 | AI18: 0
AE19: 0 | AF19: 0 | AH19: 0 | AI19: 0
AE20: 0 | AF20: 0 | AH20: 0 | AI20: 0
B21: DH-100A | M21: DH-100 | Z21: dh100 | AA21: 0.45 | AB21: 0.75 | AC21: 10.1 | AE21: 0 | AF21: 0 | AH21: 0 | AI21: 0 | AK21: 2 | AL21: =F21*AK21 -> 0 | AM21: =Q21*AK21 -> 0
B22: DH-99 | M22: DH-99 | Z22: dh99 | AA22: 0.45 | AB22: 0.75 | AC22: 10.1 | AE22: 0 | AF22: 0 | AH22: 0 | AI22: 0 | AK22: 2 | AL22: =F22*AK22 -> 0 | AM22: =Q22*AK22 -> 0
B23: DH-98 | M23: DH-98 | Z23: dh98 | AA23: 0.45 | AB23: 0.75 | AC23: 10.1 | AE23: 0 | AF23: 0 | AH23: 0 | AI23: 0 | AK23: 2 | AL23: 0 | AM23: 0
B24: AMS | M24: AMS | Z24: ams | AA24: 0.45 | AB24: 0.75 | AC24: 5.2 | AE24: 0 | AF24: 0 | AH24: 0 | AI24: 0 | AM24: 0
B25: CZM | M25: CZM | Z25: czm | AA25: 0.45 | AB25: 0.75 | AC25: 4.3 | AE25: 0 | AF25: 0 | AH25: 0 | AI25: 0 | AM25: 0
B26: FRCME | M26: FRCME | Z26: frcme | AA26: 0.6 | AB26: 0.95 | AC26: 0.95 | AE26: 0 | AF26: 0 | AH26: 0 | AI26: 0 | AM26: 0
B27: FRCMA | M27: FRCMA | Z27: frcma | AA27: 0.65 | AB27: 1 | AC27: 5.1 | AE27: 0 | AF27: 0 | AH27: 0 | AI27: 0 | AM27: 0
B28: FRCMA-I | M28: FRCMA-I | Z28: frcma-i | AA28: 0.8 | AB28: 1.1 | AC28: 5.1 | AE28: 0 | AF28: 0 | AH28: 0 | AI28: 0 | AM28: 0
B29: FRCME-M | M29: FRCME-M | Z29: frcme-m | AA29: 0.6 | AB29: 0.9 | AC29: 0.95 | AE29: 0 | AF29: 0 | AH29: 0 | AI29: 0 | AM29: 0
B30: FRCME-P | M30: FRCME-P | Z30: frcme-p | AA30: 0.6 | AB30: 0.9 | AC30: 0.95 | AE30: 0 | AF30: 0 | AH30: 0 | AI30: 0 | AM30: 0
B31: DIMM | M31: DIMM | Z31: dimm | AA31: 1.05 | AB31: 1.1 | AC31: 5.2 | AE31: 0 | AF31: 0 | AH31: 0 | AI31: 0 | AK31: 3 | AL31: =F31*AK31 -> 0 | AM31: 0
B32: R2M | M32: R2M | Z32: r2m | AA32: 0.4 | AB32: 0.4 | AC32: 0.4 | AE32: 0 | AF32: 0 | AH32: 0 | AI32: 0 | AK32: 3 | AL32: =F32*AK32 -> 0 | AM32: 0
B33: R2M-L | M33: R2M-L | Z33: r2ml | AA33: 0.55 | AB33: 0.85 | AC33: 0.85 | AE33: 0 | AF33: 0 | AH33: 0 | AI33: 0 | AK33: 3 | AL33: 0 | AM33: 0
B34: R2M-LI | M34: R2M-LI | Z34: r2mli | AA34: 0.55 | AB34: 0.85 | AC34: 0.85 | AE34: 0 | AF34: 0 | AH34: 0 | AI34: 0 | AK34: 3 | AL34: 0 | AM34: 0
B35: R2M-H | M35: R2M-H | Z35: r2mh | AA35: 0.55 | AB35: 0.85 | AC35: 0.85 | AE35: 0 | AF35: 0 | AH35: 0 | AI35: 0 | AK35: 3 | AL35: 0 | AM35: 0
B36: R2M-HI | M36: R2M-HI | Z36: r2mhi | AA36: 0.55 | AB36: 0.85 | AC36: 0.85 | AE36: 0 | AF36: 0 | AH36: 0 | AI36: 0 | AK36: 3 | AL36: 0 | AM36: 0
B37: SOM | M37: SOM | Z37: som | AA37: 0.2 | AB37: 0.15 | AC37: 0.15 | AE37: 0 | AF37: 0 | AH37: 0 | AI37: 0 | AK37: 2 | AL37: 0 | AM37: 0
B38: SOM-A | M38: SOM-A | Z38: soma | AA38: 0.45 | AB38: 0.8 | AC38: 0.8 | AE38: 0 | AF38: 0 | AH38: 0 | AI38: 0 | AK38: 2 | AL38: 0 | AM38: 0
B39: SOM-AI | M39: SOM-AI | Z39: somai | AA39: 0.45 | AB39: 0.8 | AC39: 0.8 | AE39: 0 | AF39: 0 | AH39: 0 | AI39: 0 | AK39: 2 | AL39: 0 | AM39: 0
B40: ASB/ASB7 | M40: ASB/ASB7 | Z40: asb | AA40: 0.12 | AB40: 0.12 | AC40: 0.12 | AE40: 0 | AF40: 0 | AH40: 0 | AI40: 0 | AM40: 0
B41: ASBL/ASBL7 | M41: ASBL/ASBL7 | Z41: asbl | AA41: 0.4 | AB41: 0.65 | AC41: 0.65 | AE41: 0 | AF41: 0 | AH41: 0 | AI41: 0 | AM41: 0
B42: MIOM (all) | M42: MIOM (all) | Z42: miom | AA42: 1.05 | AB42: 1.1 | AC42: 4.3 | AE42: 0 | AF42: 0 | AH42: 0 | AI42: 0 | AK42: 7 | AL42: 0 | AM42: 0
B43: CLIM1 | M43: CLIM1 | Z43: clim1 | AA43: 0.5 | AB43: 6 | AC43: 6 | AE43: 0 | AF43: 0 | AH43: 0 | AI43: 0 | AK43: 6 | AL43: 0 | AM43: 0
B44: CLIM2 | M44: CLIM2 | Z44: clim2 | AA44: 0.55 | AB44: 6 | AC44: 6 | AE44: 0 | AF44: 0 | AH44: 0 | AI44: 0 | AK44: 11 | AL44: 0 | AM44: 0
B45: SCI Module | M45: SCI Module | Z45: sci | AA45: 0.3 | AB45: 10 | AC45: 10 | AE45: 0 | AF45: =IF(F45>0,20,0) -> 0 | AH45: 0 | AI45: =IF(Q45>0,20,0) -> 0
B46: SCI-B4 / -B6 | M46: SCI-B4 / -B6 | Z46: sci bases | AA46: 0.3 | AB46: 10 | AC46: 10 | AE46: 0 | AF46: =IF(F46>0,20,0) -> 0 | AH46: 0 | AI46: =IF(Q46>0,20,0) -> 0
AL50: SLC1 | AM50: SLC2 | AN50: <- total subaddresses
AA51: SLC3 total | AB51: =F52 -> 0 | AC51: SLC4 total | AD51: =Q52 -> 0 | AE51: =SUM(AE9:AE49) -> 0 | AF51: =IF(SUM(AF9:AF49)=0,0,SUM(AF9:AF49)+0.8) -> 0 | AH51: =SUM(AH9:AH49) -> 0 | AI51: =IF(SUM(AI9:AI49)=0,0,SUM(AI9:AI49)+0.8) -> 0 | AL51: =SUM(AL15:AL44) -> 0 | AM51: =SUM(AM15:AM44) -> 0
B52: Device Total - | F52: =SUM(F9:H39,F42,F43,F44) -> 0 | M52: Device Total - | Q52: =SUM(Q9:S39,Q42,Q43,Q44) -> 0
B54: Total Bases - | F54: =SUM(F40,F41,F46) -> 0 | M54: Total Bases - | Q54: =SUM(Q40,Q41,Q46) -> 0 | AA54: SLC3 | AC54: SLC4
Z55: total detectors | AA55: =SUM(F9:H18) -> 0 | AC55: =SUM(Q9:S18) -> 0
B56: =IF(AA56>AA55,"You have more Sounder Bases/SCI Bases than Detectors on SLC 3!","") ->  | Z56: total bases | AA56: =F54 -> 0 | AC56: =Q54 -> 0
B57: =IF(AC56>AC55,"You have more Sounder Bases/SCI Bases than Detectors on SLC 4!","") ->  | Z57: total device count | AA57: =F52 -> 0 | AC57: =Q52 -> 0
B58: =IF(F52>127,"You have exceeded 127 Devices on SLC 3!","") -> 
B59: =IF(Q52>127,"You have exceeded 127 Devices on SLC 4!","") -> 
B60: =IF(AL51>400,"You have exceeded 400 sub-addresses on SLC 3!","") -> 
B61: =IF(AM51>400,"You have exceeded 400 sub-addresses on SLC 4!","") -> 

Sheet SLC5_and_SLC6
B2: Devices for SLC 5 and SLC 6
B4: =Calcs!F8 -> Latitude | AB4: all current in milliamps
B7: SLC 5 | M7: SLC 6 | AA7: standby | AB7: alarm | AC7: Maximum | AE7: standby | AF7: alarm | AH7: standby | AI7: alarm | AK7: sub-addresses
B8: Device Type | F8: Quantity | M8: Device Type | Q8: Quantity | AA8: current | AB8: current | AC8: current | AE8: SLC5total | AF8: SLC5total | AH8: SLC6total | AI8: SLC6total | AK8: SLC5 | AM8: SLC6
B9: ALO-V | M9: ALO-V | Z9: alo | AA9: 0.34 | AB9: 0.34 | AC9: 8.5 | AE9: =F9*AA9 -> 0 | AF9: =F9*AB9 -> 0 | AH9: =Q9*AA9 -> 0 | AI9: =Q9*AB9 -> 0
B10: ALN-V | M10: ALN-V | Z10: aln | AA10: 0.45 | AB10: 0.7 | AC10: 9.6 | AE10: =F10*AA10 -> 0 | AF10: =F10*AB10 -> 0 | AH10: =Q10*AA10 -> 0 | AI10: =Q10*AB10 -> 0
B11: ALK-V | M11: ALK-V | Z11: alk | AA11: 0.4 | AB11: 10.1 | AC11: 10.1 | AE11: 0 | AF11: 0 | AH11: 0 | AI11: 0
B12: ALG-V | M12: ALG-V | Z12: alg | AA12: 0.4 | AB12: 0.54 | AC12: 17.1 | AE12: 0 | AF12: 0 | AH12: 0 | AI12: 0
B13: ATJ-EA | M13: ATJ-EA | Z13: atj | AA13: 0.35 | AB13: 0.35 | AC13: 17.1 | AE13: 0 | AF13: 0 | AH13: 0 | AI13: 0
B14: ATG-EA | M14: ATG-EA | Z14: atg | AA14: 0.5 | AB14: 0.8 | AC14: 10.1 | AE14: 0 | AF14: 0 | AH14: 0 | AI14: 0
B15: ACA-V | M15: ACA-V | Z15: aca | AA15: 0.45 | AB15: 0.6 | AC15: 19.1 | AE15: 0 | AF15: 0 | AH15: 0 | AI15: 0
B16: ACC-V | M16: ACC-V | Z16: acc | AA16: 0.45 | AB16: 0.65 | AC16: 8.3 | AE16: 0 | AF16: 0 | AH16: 0 | AI16: 0
B17: ACE-V | M17: ACE-V | Z17: ace | AA17: 0.45 | AB17: 0.7 | AC17: 10.1 | AE17: 0 | AF17: 0 | AH17: 0 | AI17: 0
B18: ACD-V | M18: ACD-V | Z18: acd | AA18: 0.6 | AB18: 0.7 | AC18: 10.1 | AE18: 0 | AF18: 0 | AH18: 0 | AI18: 0
AE19: 0 | AF19: 0 | AH19: 0 | AI19: 0
AE20: 0 | AF20: 0 | AH20: 0 | AI20: 0
B21: DH-100A | M21: DH-100 | Z21: dh100 | AA21: 0.45 | AB21: 0.75 | AC21: 10.1 | AE21: 0 | AF21: 0 | AH21: 0 | AI21: 0 | AK21: 2 | AL21: =F21*AK21 -> 0 | AM21: =Q21*AK21 -> 0
B22: DH-99 | M22: DH-99 | Z22: dh99 | AA22: 0.45 | AB22: 0.75 | AC22: 10.1 | AE22: 0 | AF22: 0 | AH22: 0 | AI22: 0 | AK22: 2 | AL22: =F22*AK22 -> 0 | AM22: =Q22*AK22 -> 0
B23: DH-98 | M23: DH-98 | Z23: dh98 | AA23: 0.45 | AB23: 0.75 | AC23: 10.1 | AE23: 0 | AF23: 0 | AH23: 0 | AI23: 0 | AK23: 2 | AL23: 0 | AM23: 0
B24: AMS | M24: AMS | Z24: ams | AA24: 0.45 | AB24: 0.75 | AC24: 5.2 | AE24: 0 | AF24: 0 | AH24: 0 | AI24: 0 | AM24: 0
B25: CZM | M25: CZM | Z25: czm | AA25: 0.45 | AB25: 0.75 | AC25: 4.3 | AE25: 0 | AF25: 0 | AH25: 0 | AI25: 0 | AM25: 0
B26: FRCME | M26: FRCME | Z26: frcme | AA26: 0.6 | AB26: 0.95 | AC26: 0.95 | AE26: 0 | AF26: 0 | AH26: 0 | AI26: 0 | AM26: 0
B27: FRCMA | M27: FRCMA | Z27: frcma | AA27: 0.65 | AB27: 1 | AC27: 5.1 | AE27: 0 | AF27: 0 | AH27: 0 | AI27: 0 | AM27: 0
B28: FRCMA-I | M28: FRCMA-I | Z28: frcma-i | AA28: 0.8 | AB28: 1.1 | AC28: 5.1 | AE28: 0 | AF28: 0 | AH28: 0 | AI28: 0 | AM28: 0
B29: FRCME-M | M29: FRCME-M | Z29: frcme-m | AA29: 0.6 | AB29: 0.9 | AC29: 0.95 | AE29: 0 | AF29: 0 | AH29: 0 | AI29: 0 | AM29: 0
B30: FRCME-P | M30: FRCME-P | Z30: frcme-p | AA30: 0.6 | AB30: 0.9 | AC30: 0.95 | AE30: 0 | AF30: 0 | AH30: 0 | AI30: 0 | AM30: 0
B31: DIMM | M31: DIMM | Z31: dimm | AA31: 1.05 | AB31: 1.1 | AC31: 5.2 | AE31: 0 | AF31: 0 | AH31: 0 | AI31: 0 | AK31: 3 | AL31: =F31*AK31 -> 0 | AM31: 0
B32: R2M | M32: R2M | Z32: r2m | AA32: 0.4 | AB32: 0.4 | AC32: 0.4 | AE32: 0 | AF32: 0 | AH32: 0 | AI32: 0 | AK32: 3 | AL32: =F32*AK32 -> 0 | AM32: 0
B33: R2M-L | M33: R2M-L | Z33: r2ml | AA33: 0.55 | AB33: 0.85 | AC33: 0.85 | AE33: 0 | AF33: 0 | AH33: 0 | AI33: 0 | AK33: 3 | AL33: 0 | AM33: 0
B34: R2M-LI | M34: R2M-LI | Z34: r2mli | AA34: 0.55 | AB34: 0.85 | AC34: 0.85 | AE34: 0 | AF34: 0 | AH34: 0 | AI34: 0 | AK34: 3 | AL34: 0 | AM34: 0
B35: R2M-H | M35: R2M-H | Z35: r2mh | AA35: 0.55 | AB35: 0.85 | AC35: 0.85 | AE35: 0 | AF35: 0 | AH35: 0 | AI35: 0 | AK35: 3 | AL35: 0 | AM35: 0
B36: R2M-HI | M36: R2M-HI | Z36: r2mhi | AA36: 0.55 | AB36: 0.85 | AC36: 0.85 | AE36: 0 | AF36: 0 | AH36: 0 | AI36: 0 | AK36: 3 | AL36: 0 | AM36: 0
B37: SOM | M37: SOM | Z37: som | AA37: 0.2 | AB37: 0.15 | AC37: 0.15 | AE37: 0 | AF37: 0 | AH37: 0 | AI37: 0 | AK37: 2 | AL37: 0 | AM37: 0
B38: SOM-A | M38: SOM-A | Z38: soma | AA38: 0.45 | AB38: 0.8 | AC38: 0.8 | AE38: 0 | AF38: 0 | AH38: 0 | AI38: 0 | AK38: 2 | AL38: 0 | AM38: 0
B39: SOM-AI | M39: SOM-AI | Z39: somai | AA39: 0.45 | AB39: 0.8 | AC39: 0.8 | AE39: 0 | AF39: 0 | AH39: 0 | AI39: 0 | AK39: 2 | AL39: 0 | AM39: 0
B40: ASB/ASB7 | M40: ASB/ASB7 | Z40: asb | AA40: 0.12 | AB40: 0.12 | AC40: 0.12 | AE40: 0 | AF40: 0 | AH40: 0 | AI40: 0 | AM40: 0
B41: ASBL/ASBL7 | M41: ASBL/ASBL7 | Z41: asbl | AA41: 0.4 | AB41: 0.65 | AC41: 0.65 | AE41: 0 | AF41: 0 | AH41: 0 | AI41: 0 | AM41: 0
B42: MIOM (all) | M42: MIOM (all) | Z42: miom | AA42: 1.05 | AB42: 1.1 | AC42: 4.3 | AE42: 0 | AF42: 0 | AH42: 0 | AI42: 0 | AK42: 7 | AL42: 0 | AM42: 0
B43: CLIM1 | M43: CLIM1 | Z43: clim1 | AA43: 0.5 | AB43: 6 | AC43: 6 | AE43: 0 | AF43: 0 | AH43: 0 | AI43: 0 | AK43: 6 | AL43: 0 | AM43: 0
B44: CLIM2 | M44: CLIM2 | Z44: clim2 | AA44: 0.55 | AB44: 6 | AC44: 6 | AE44: 0 | AF44: 0 | AH44: 0 | AI44: 0 | AK44: 11 | AL44: 0 | AM44: 0
B45: SCI Module | M45: SCI Module | Z45: sci | AA45: 0.3 | AB45: 10 | AC45: 10 | AE45: 0 | AF45: =IF(F45>0,20,0) -> 0 | AH45: 0 | AI45: =IF(Q45>0,20,0) -> 0
B46: SCI-B4 / -B6 | M46: SCI-B4 / -B6 | Z46: sci bases | AA46: 0.3 | AB46: 10 | AC46: 10 | AE46: 0 | AF46: =IF(F46>0,20,0) -> 0 | AH46: 0 | AI46: =IF(Q46>0,20,0) -> 0
AL50: SLC1 | AM50: SLC2 | AN50: <- total subaddresses
AA51: SLC5 total | AB51: =F52 -> 0 | AC51: SLC6 total | AD51: =Q52 -> 0 | AE51: =SUM(AE9:AE49) -> 0 | AF51: =IF(SUM(AF9:AF49)=0,0,SUM(AF9:AF49)+0.8) -> 0 | AH51: =SUM(AH9:AH49) -> 0 | AI51: =IF(SUM(AI9:AI49)=0,0,SUM(AI9:AI49)+0.8) -> 0 | AL51: =SUM(AL15:AL44) -> 0 | AM51: =SUM(AM15:AM44) -> 0
B52: Device Total - | F52: =SUM(F9:H39,F42,F43,F44) -> 0 | M52: Device Total - | Q52: =SUM(Q9:S39,Q42,Q43,Q44) -> 0
B54: Total Bases - | F54: =SUM(F40,F41,F46) -> 0 | M54: Total Bases - | Q54: =SUM(Q40,Q41,Q46) -> 0 | AA54: SLC5 | AC54: SLC6
Z55: total detectors | AA55: =SUM(F9:H18) -> 0 | AC55: =SUM(Q9:S18) -> 0
B56: =IF(AA56>AA55,"You have more Sounder Bases/SCI Bases than Detectors on SLC 5!","") ->  | Z56: total bases | AA56: =F54 -> 0 | AC56: =Q54 -> 0
B57: =IF(AC56>AC55,"You have more Sounder Bases/SCI Bases than Detectors on SLC 6!","") ->  | Z57: total device count | AA57: =F52 -> 0 | AC57: =Q52 -> 0
B58: =IF(F52>127,"You have exceeded 127 Devices on SLC 5!","") -> 
B59: =IF(Q52>127,"You have exceeded 127 Devices on SLC 6!","") -> 
B60: =IF(AL51>400,"You have exceeded 400 sub-addresses on SLC 5!","") -> 
B61: =IF(AM51>400,"You have exceeded 400 sub-addresses on SLC 6!","") -> 

Sheet SLC7_and_SLC8
B2: Devices for SLC 7 and SLC 8
B4: =Calcs!F8 -> Latitude | AB4: all current in milliamps
B7: SLC 7 | M7: SLC 8 | AA7: standby | AB7: alarm | AC7: Maximum | AE7: standby | AF7: alarm | AH7: standby | AI7: alarm | AK7: sub-addresses
B8: Device Type | F8: Quantity | M8: Device Type | Q8: Quantity | AA8: current | AB8: current | AC8: current | AE8: SLC7total | AF8: SLC7total | AH8: SLC8total | AI8: SLC8total | AK8: SLC7 | AM8: SLC8
B9: ALO-V | M9: ALO-V | Z9: alo | AA9: 0.34 | AB9: 0.34 | AC9: 8.5 | AE9: =F9*AA9 -> 0 | AF9: =F9*AB9 -> 0 | AH9: =Q9*AA9 -> 0 | AI9: =Q9*AB9 -> 0
B10: ALN-V | M10: ALN-V | Z10: aln | AA10: 0.45 | AB10: 0.7 | AC10: 9.6 | AE10: =F10*AA10 -> 0 | AF10: =F10*AB10 -> 0 | AH10: =Q10*AA10 -> 0 | AI10: =Q10*AB10 -> 0
B11: ALK-V | M11: ALK-V | Z11: alk | AA11: 0.4 | AB11: 10.1 | AC11: 10.1 | AE11: 0 | AF11: 0 | AH11: 0 | AI11: 0
B12: ALG-V | M12: ALG-V | Z12: alg | AA12: 0.4 | AB12: 0.54 | AC12: 17.1 | AE12: 0 | AF12: 0 | AH12: 0 | AI12: 0
B13: ATJ-EA | M13: ATJ-EA | Z13: atj | AA13: 0.35 | AB13: 0.35 | AC13: 17.1 | AE13: 0 | AF13: 0 | AH13: 0 | AI13: 0
B14: ATG-EA | M14: ATG-EA | Z14: atg | AA14: 0.5 | AB14: 0.8 | AC14: 10.1 | AE14: 0 | AF14: 0 | AH14: 0 | AI14: 0
B15: ACA-V | M15: ACA-V | Z15: aca | AA15: 0.45 | AB15: 0.6 | AC15: 19.1 | AE15: 0 | AF15: 0 | AH15: 0 | AI15: 0
B16: ACC-V | M16: ACC-V | Z16: acc | AA16: 0.45 | AB16: 0.65 | AC16: 8.3 | AE16: 0 | AF16: 0 | AH16: 0 | AI16: 0
B17: ACE-V | M17: ACE-V | Z17: ace | AA17: 0.45 | AB17: 0.7 | AC17: 10.1 | AE17: 0 | AF17: 0 | AH17: 0 | AI17: 0
B18: ACD-V | M18: ACD-V | Z18: acd | AA18: 0.6 | AB18: 0.7 | AC18: 10.1 | AE18: 0 | AF18: 0 | AH18: 0 | AI18: 0
AE19: 0 | AF19: 0 | AH19: 0 | AI19: 0
AE20: 0 | AF20: 0 | AH20: 0 | AI20: 0
B21: DH-100A | M21: DH-100 | Z21: dh100 | AA21: 0.45 | AB21: 0.75 | AC21: 10.1 | AE21: 0 | AF21: 0 | AH21: 0 | AI21: 0 | AK21: 2 | AL21: =F21*AK21 -> 0 | AM21: =Q21*AK21 -> 0
B22: DH-99 | M22: DH-99 | Z22: dh99 | AA22: 0.45 | AB22: 0.75 | AC22: 10.1 | AE22: 0 | AF22: 0 | AH22: 0 | AI22: 0 | AK22: 2 | AL22: =F22*AK22 -> 0 | AM22: =Q22*AK22 -> 0
B23: DH-98 | M23: DH-98 | Z23: dh98 | AA23: 0.45 | AB23: 0.75 | AC23: 10.1 | AE23: 0 | AF23: 0 | AH23: 0 | AI23: 0 | AK23: 2 | AL23: 0 | AM23: 0
B24: AMS | M24: AMS | Z24: ams | AA24: 0.45 | AB24: 0.75 | AC24: 5.2 | AE24: 0 | AF24: 0 | AH24: 0 | AI24: 0 | AM24: 0
B25: CZM | M25: CZM | Z25: czm | AA25: 0.45 | AB25: 0.75 | AC25: 4.3 | AE25: 0 | AF25: 0 | AH25: 0 | AI25: 0 | AM25: 0
B26: FRCME | M26: FRCME | Z26: frcme | AA26: 0.6 | AB26: 0.95 | AC26: 0.95 | AE26: 0 | AF26: 0 | AH26: 0 | AI26: 0 | AM26: 0
B27: FRCMA | M27: FRCMA | Z27: frcma | AA27: 0.65 | AB27: 1 | AC27: 5.1 | AE27: 0 | AF27: 0 | AH27: 0 | AI27: 0 | AM27: 0
B28: FRCMA-I | M28: FRCMA-I | Z28: frcma-i | AA28: 0.8 | AB28: 1.1 | AC28: 5.1 | AE28: 0 | AF28: 0 | AH28: 0 | AI28: 0 | AM28: 0
B29: FRCME-M | M29: FRCME-M | Z29: frcme-m | AA29: 0.6 | AB29: 0.9 | AC29: 0.95 | AE29: 0 | AF29: 0 | AH29: 0 | AI29: 0 | AM29: 0
B30: FRCME-P | M30: FRCME-P | Z30: frcme-p | AA30: 0.6 | AB30: 0.9 | AC30: 0.95 | AE30: 0 | AF30: 0 | AH30: 0 | AI30: 0 | AM30: 0
B31: DIMM | M31: DIMM | Z31: dimm | AA31: 1.05 | AB31: 1.1 | AC31: 5.2 | AE31: 0 | AF31: 0 | AH31: 0 | AI31: 0 | AK31: 3 | AL31: =F31*AK31 -> 0 | AM31: 0
B32: R2M | M32: R2M | Z32: r2m | AA32: 0.4 | AB32: 0.4 | AC32: 0.4 | AE32: 0 | AF32: 0 | AH32: 0 | AI32: 0 | AK32: 3 | AL32: =F32*AK32 -> 0 | AM32: 0
B33: R2M-L | M33: R2M-L | Z33: r2ml | AA33: 0.55 | AB33: 0.85 | AC33: 0.85 | AE33: 0 | AF33: 0 | AH33: 0 | AI33: 0 | AK33: 3 | AL33: 0 | AM33: 0
B34: R2M-LI | M34: R2M-LI | Z34: r2mli | AA34: 0.55 | AB34: 0.85 | AC34: 0.85 | AE34: 0 | AF34: 0 | AH34: 0 | AI34: 0 | AK34: 3 | AL34: 0 | AM34: 0
B35: R2M-H | M35: R2M-H | Z35: r2mh | AA35: 0.55 | AB35: 0.85 | AC35: 0.85 | AE35: 0 | AF35: 0 | AH35: 0 | AI35: 0 | AK35: 3 | AL35: 0 | AM35: 0
B36: R2M-HI | M36: R2M-HI | Z36: r2mhi | AA36: 0.55 | AB36: 0.85 | AC36: 0.85 | AE36: 0 | AF36: 0 | AH36: 0 | AI36: 0 | AK36: 3 | AL36: 0 | AM36: 0
B37: SOM | M37: SOM | Z37: som | AA37: 0.2 | AB37: 0.15 | AC37: 0.15 | AE37: 0 | AF37: 0 | AH37: 0 | AI37: 0 | AK37: 2 | AL37: 0 | AM37: 0
B38: SOM-A | M38: SOM-A | Z38: soma | AA38: 0.45 | AB38: 0.8 | AC38: 0.8 | AE38: 0 | AF38: 0 | AH38: 0 | AI38: 0 | AK38: 2 | AL38: 0 | AM38: 0
B39: SOM-AI | M39: SOM-AI | Z39: somai | AA39: 0.45 | AB39: 0.8 | AC39: 0.8 | AE39: 0 | AF39: 0 | AH39: 0 | AI39: 0 | AK39: 2 | AL39: 0 | AM39: 0
B40: ASB/ASB7 | M40: ASB/ASB7 | Z40: asb | AA40: 0.12 | AB40: 0.12 | AC40: 0.12 | AE40: 0 | AF40: 0 | AH40: 0 | AI40: 0 | AM40: 0
B41: ASBL/ASBL7 | M41: ASBL/ASBL7 | Z41: asbl | AA41: 0.4 | AB41: 0.65 | AC41: 0.65 | AE41: 0 | AF41: 0 | AH41: 0 | AI41: 0 | AM41: 0
B42: MIOM (all) | M42: MIOM (all) | Z42: miom | AA42: 1.05 | AB42: 1.1 | AC42: 4.3 | AE42: 0 | AF42: 0 | AH42: 0 | AI42: 0 | AK42: 7 | AL42: 0 | AM42: 0
B43: CLIM1 | M43: CLIM1 | Z43: clim1 | AA43: 0.5 | AB43: 6 | AC43: 6 | AE43: 0 | AF43: 0 | AH43: 0 | AI43: 0 | AK43: 6 | AL43: 0 | AM43: 0
B44: CLIM2 | M44: CLIM2 | Z44: clim2 | AA44: 0.55 | AB44: 6 | AC44: 6 | AE44: 0 | AF44: 0 | AH44: 0 | AI44: 0 | AK44: 11 | AL44: 0 | AM44: 0
B45: SCI Module | M45: SCI Module | Z45: sci | AA45: 0.3 | AB45: 10 | AC45: 10 | AE45: 0 | AF45: =IF(F45>0,20,0) -> 0 | AH45: 0 | AI45: =IF(Q45>0,20,0) -> 0
B46: SCI-B4 / -B6 | M46: SCI-B4 / -B6 | Z46: sci bases | AA46: 0.3 | AB46: 10 | AC46: 10 | AE46: 0 | AF46: =IF(F46>0,20,0) -> 0 | AH46: 0 | AI46: =IF(Q46>0,20,0) -> 0
AL50: SLC1 | AM50: SLC2 | AN50: <- total subaddresses
AA51: SLC7 total | AB51: =F52 -> 0 | AC51: SLC8 total | AD51: =Q52 -> 0 | AE51: =SUM(AE9:AE49) -> 0 | AF51: =IF(SUM(AF9:AF49)=0,0,SUM(AF9:AF49)+0.8) -> 0 | AH51: =SUM(AH9:AH49) -> 0 | AI51: =IF(SUM(AI9:AI49)=0,0,SUM(AI9:AI49)+0.8) -> 0 | AL51: =SUM(AL15:AL44) -> 0 | AM51: =SUM(AM15:AM44) -> 0
B52: Device Total - | F52: =SUM(F9:H39,F42,F43,F44) -> 0 | M52: Device Total - | Q52: =SUM(Q9:S39,Q42,Q43,Q44) -> 0
B54: Total Bases - | F54: =SUM(F40,F41,F46) -> 0 | M54: Total Bases - | Q54: =SUM(Q40,Q41,Q46) -> 0 | AA54: SLC7 | AC54: SLC8
Z55: total detectors | AA55: =SUM(F9:H18) -> 0 | AC55: =SUM(Q9:S18) -> 0
B56: =IF(AA56>AA55,"You have more Sounder Bases/SCI Bases than Detectors on SLC 7!","") ->  | Z56: total bases | AA56: =F54 -> 0 | AC56: =Q54 -> 0
B57: =IF(AC56>AC55,"You have more Sounder Bases/SCI Bases than Detectors on SLC 8!","") ->  | Z57: total device count | AA57: =F52 -> 0 | AC57: =Q52 -> 0
B58: =IF(F52>127,"You have exceeded 127 Devices on SLC 7!","") -> 
B59: =IF(Q52>127,"You have exceeded 127 Devices on SLC 8!","") -> 
B60: =IF(AL51>400,"You have exceeded 400 sub-addresses on SLC 7!","") -> 
B61: =IF(AM51>400,"You have exceeded 400 sub-addresses on SLC 8!","") -> 

Sheet SLC9_and_SLC10
B2: Devices for SLC 9 and SLC 10
B4: =Calcs!F8 -> Latitude | AB4: all current in milliamps
B7: SLC 9 | M7: SLC 10 | AA7: standby | AB7: alarm | AC7: Maximum | AE7: standby | AF7: alarm | AH7: standby | AI7: alarm | AK7: sub-addresses
B8: Device Type | F8: Quantity | M8: Device Type | Q8: Quantity | AA8: current | AB8: current | AC8: current | AE8: SLC9total | AF8: SLC9total | AH8: SLC10total | AI8: SLC10total | AK8: SLC9 | AM8: SLC10
B9: ALO-V | M9: ALO-V | Z9: alo | AA9: 0.34 | AB9: 0.34 | AC9: 8.5 | AE9: =F9*AA9 -> 0 | AF9: =F9*AB9 -> 0 | AH9: =Q9*AA9 -> 0 | AI9: =Q9*AB9 -> 0
B10: ALN-V | M10: ALN-V | Z10: aln | AA10: 0.45 | AB10: 0.7 | AC10: 9.6 | AE10: =F10*AA10 -> 0 | AF10: =F10*AB10 -> 0 | AH10: =Q10*AA10 -> 0 | AI10: =Q10*AB10 -> 0
B11: ALK-V | M11: ALK-V | Z11: alk | AA11: 0.4 | AB11: 10.1 | AC11: 10.1 | AE11: 0 | AF11: 0 | AH11: 0 | AI11: 0
B12: ALG-V | M12: ALG-V | Z12: alg | AA12: 0.4 | AB12: 0.54 | AC12: 17.1 | AE12: 0 | AF12: 0 | AH12: 0 | AI12: 0
B13: ATJ-EA | M13: ATJ-EA | Z13: atj | AA13: 0.35 | AB13: 0.35 | AC13: 17.1 | AE13: 0 | AF13: 0 | AH13: 0 | AI13: 0
B14: ATG-EA | M14: ATG-EA | Z14: atg | AA14: 0.5 | AB14: 0.8 | AC14: 10.1 | AE14: 0 | AF14: 0 | AH14: 0 | AI14: 0
B15: ACA-V | M15: ACA-V | Z15: aca | AA15: 0.45 | AB15: 0.6 | AC15: 19.1 | AE15: 0 | AF15: 0 | AH15: 0 | AI15: 0
B16: ACC-V | M16: ACC-V | Z16: acc | AA16: 0.45 | AB16: 0.65 | AC16: 8.3 | AE16: 0 | AF16: 0 | AH16: 0 | AI16: 0
B17: ACE-V | M17: ACE-V | Z17: ace | AA17: 0.45 | AB17: 0.7 | AC17: 10.1 | AE17: 0 | AF17: 0 | AH17: 0 | AI17: 0
B18: ACD-V | M18: ACD-V | Z18: acd | AA18: 0.6 | AB18: 0.7 | AC18: 10.1 | AE18: 0 | AF18: 0 | AH18: 0 | AI18: 0
AE19: 0 | AF19: 0 | AH19: 0 | AI19: 0
AE20: 0 | AF20: 0 | AH20: 0 | AI20: 0
B21: DH-100A | M21: DH-100 | Z21: dh100 | AA21: 0.45 | AB21: 0.75 | AC21: 10.1 | AE21: 0 | AF21: 0 | AH21: 0 | AI21: 0 | AK21: 2 | AL21: =F21*AK21 -> 0 | AM21: =Q21*AK21 -> 0
B22: DH-99 | M22: DH-99 | Z22: dh99 | AA22: 0.45 | AB22: 0.75 | AC22: 10.1 | AE22: 0 | AF22: 0 | AH22: 0 | AI22: 0 | AK22: 2 | AL22: =F22*AK22 -> 0 | AM22: =Q22*AK22 -> 0
B23: DH-98 | M23: DH-98 | Z23: dh98 | AA23: 0.45 | AB23: 0.75 | AC23: 10.1 | AE23: 0 | AF23: 0 | AH23: 0 | AI23: 0 | AK23: 2 | AL23: 0 | AM23: 0
B24: AMS | M24: AMS | Z24: ams | AA24: 0.45 | AB24: 0.75 | AC24: 5.2 | AE24: 0 | AF24: 0 | AH24: 0 | AI24: 0 | AM24: 0
B25: CZM | M25: CZM | Z25: czm | AA25: 0.45 | AB25: 0.75 | AC25: 4.3 | AE25: 0 | AF25: 0 | AH25: 0 | AI25: 0 | AM25: 0
B26: FRCME | M26: FRCME | Z26: frcme | AA26: 0.6 | AB26: 0.95 | AC26: 0.95 | AE26: 0 | AF26: 0 | AH26: 0 | AI26: 0 | AM26: 0
B27: FRCMA | M27: FRCMA | Z27: frcma | AA27: 0.65 | AB27: 1 | AC27: 5.1 | AE27: 0 | AF27: 0 | AH27: 0 | AI27: 0 | AM27: 0
B28: FRCMA-I | M28: FRCMA-I | Z28: frcma-i | AA28: 0.8 | AB28: 1.1 | AC28: 5.1 | AE28: 0 | AF28: 0 | AH28: 0 | AI28: 0 | AM28: 0
B29: FRCME-M | M29: FRCME-M | Z29: frcme-m | AA29: 0.6 | AB29: 0.9 | AC29: 0.95 | AE29: 0 | AF29: 0 | AH29: 0 | AI29: 0 | AM29: 0
B30: FRCME-P | M30: FRCME-P | Z30: frcme-p | AA30: 0.6 | AB30: 0.9 | AC30: 0.95 | AE30: 0 | AF30: 0 | AH30: 0 | AI30: 0 | AM30: 0
B31: DIMM | M31: DIMM | Z31: dimm | AA31: 1.05 | AB31: 1.1 | AC31: 5.2 | AE31: 0 | AF31: 0 | AH31: 0 | AI31: 0 | AK31: 3 | AL31: =F31*AK31 -> 0 | AM31: 0
B32: R2M | M32: R2M | Z32: r2m | AA32: 0.4 | AB32: 0.4 | AC32: 0.4 | AE32: 0 | AF32: 0 | AH32: 0 | AI32: 0 | AK32: 3 | AL32: =F32*AK32 -> 0 | AM32: 0
B33: R2M-L | M33: R2M-L | Z33: r2ml | AA33: 0.55 | AB33: 0.85 | AC33: 0.85 | AE33: 0 | AF33: 0 | AH33: 0 | AI33: 0 | AK33: 3 | AL33: 0 | AM33: 0
B34: R2M-LI | M34: R2M-LI | Z34: r2mli | AA34: 0.55 | AB34: 0.85 | AC34: 0.85 | AE34: 0 | AF34: 0 | AH34: 0 | AI34: 0 | AK34: 3 | AL34: 0 | AM34: 0
B35: R2M-H | M35: R2M-H | Z35: r2mh | AA35: 0.55 | AB35: 0.85 | AC35: 0.85 | AE35: 0 | AF35: 0 | AH35: 0 | AI35: 0 | AK35: 3 | AL35: 0 | AM35: 0
B36: R2M-HI | M36: R2M-HI | Z36: r2mhi | AA36: 0.55 | AB36: 0.85 | AC36: 0.85 | AE36: 0 | AF36: 0 | AH36: 0 | AI36: 0 | AK36: 3 | AL36: 0 | AM36: 0
B37: SOM | M37: SOM | Z37: som | AA37: 0.2 | AB37: 0.15 | AC37: 0.15 | AE37: 0 | AF37: 0 | AH37: 0 | AI37: 0 | AK37: 2 | AL37: 0 | AM37: 0
B38: SOM-A | M38: SOM-A | Z38: soma | AA38: 0.45 | AB38: 0.8 | AC38: 0.8 | AE38: 0 | AF38: 0 | AH38: 0 | AI38: 0 | AK38: 2 | AL38: 0 | AM38: 0
B39: SOM-AI | M39: SOM-AI | Z39: somai | AA39: 0.45 | AB39: 0.8 | AC39: 0.8 | AE39: 0 | AF39: 0 | AH39: 0 | AI39: 0 | AK39: 2 | AL39: 0 | AM39: 0
B40: ASB/ASB7 | M40: ASB/ASB7 | Z40: asb | AA40: 0.12 | AB40: 0.12 | AC40: 0.12 | AE40: 0 | AF40: 0 | AH40: 0 | AI40: 0 | AM40: 0
B41: ASBL/ASBL7 | M41: ASBL/ASBL7 | Z41: asbl | AA41: 0.4 | AB41: 0.65 | AC41: 0.65 | AE41: 0 | AF41: 0 | AH41: 0 | AI41: 0 | AM41: 0
B42: MIOM (all) | M42: MIOM (all) | Z42: miom | AA42: 1.05 | AB42: 1.1 | AC42: 4.3 | AE42: 0 | AF42: 0 | AH42: 0 | AI42: 0 | AK42: 7 | AL42: 0 | AM42: 0
B43: CLIM1 | M43: CLIM1 | Z43: clim1 | AA43: 0.5 | AB43: 6 | AC43: 6 | AE43: 0 | AF43: 0 | AH43: 0 | AI43: 0 | AK43: 6 | AL43: 0 | AM43: 0
B44: CLIM2 | M44: CLIM2 | Z44: clim2 | AA44: 0.55 | AB44: 6 | AC44: 6 | AE44: 0 | AF44: 0 | AH44: 0 | AI44: 0 | AK44: 11 | AL44: 0 | AM44: 0
B45: SCI Module | M45: SCI Module | Z45: sci | AA45: 0.3 | AB45: 10 | AC45: 10 | AE45: 0 | AF45: =IF(F45>0,20,0) -> 0 | AH45: 0 | AI45: =IF(Q45>0,20,0) -> 0
B46: SCI-B4 / -B6 | M46: SCI-B4 / -B6 | Z46: sci bases | AA46: 0.3 | AB46: 10 | AC46: 10 | AE46: 0 | AF46: =IF(F46>0,20,0) -> 0 | AH46: 0 | AI46: =IF(Q46>0,20,0) -> 0
AL50: SLC1 | AM50: SLC2 | AN50: <- total subaddresses
AA51: SLC9 total | AB51: =F52 -> 0 | AC51: SLC10 total | AD51: =Q52 -> 0 | AE51: =SUM(AE9:AE49) -> 0 | AF51: =IF(SUM(AF9:AF49)=0,0,SUM(AF9:AF49)+0.8) -> 0 | AH51: =SUM(AH9:AH49) -> 0 | AI51: =IF(SUM(AI9:AI49)=0,0,SUM(AI9:AI49)+0.8) -> 0 | AL51: =SUM(AL15:AL44) -> 0 | AM51: =SUM(AM15:AM44) -> 0
B52: Device Total - | F52: =SUM(F9:H39,F42,F43,F44) -> 0 | M52: Device Total - | Q52: =SUM(Q9:S39,Q42,Q43,Q44) -> 0
B54: Total Bases - | F54: =SUM(F40,F41,F46) -> 0 | M54: Total Bases - | Q54: =SUM(Q40,Q41,Q46) -> 0 | AA54: SLC9 | AC54: SLC10
Z55: total detectors | AA55: =SUM(F9:H18) -> 0 | AC55: =SUM(Q9:S18) -> 0
B56: =IF(AA56>AA55,"You have more Sounder Bases/SCI Bases than Detectors on SLC 9!","") ->  | Z56: total bases | AA56: =F54 -> 0 | AC56: =Q54 -> 0
B57: =IF(AC56>AC55,"You have more Sounder Bases/SCI Bases than Detectors on SLC 10!","") ->  | Z57: total device count | AA57: =F52 -> 0 | AC57: =Q52 -> 0
B58: =IF(F52>127,"You have exceeded 127 Devices on SLC 9!","") -> 
B59: =IF(Q52>127,"You have exceeded 127 Devices on SLC 10!","") -> 
B60: =IF(AL51>400,"You have exceeded 400 sub-addresses on SLC 9!","") -> 
B61: =IF(AM51>400,"You have exceeded 400 sub-addresses on SLC 10!","") -> 

Sheet SLC11_and_SLC12
B2: Devices for SLC 11 and SLC 12
B4: =Calcs!F8 -> Latitude | AB4: all current in milliamps
B7: SLC 11 | M7: SLC 12 | AA7: standby | AB7: alarm | AC7: Maximum | AE7: standby | AF7: alarm | AH7: standby | AI7: alarm | AK7: sub-addresses
B8: Device Type | F8: Quantity | M8: Device Type | Q8: Quantity | AA8: current | AB8: current | AC8: current | AE8: SLC11total | AF8: SLC11total | AH8: SLC12total | AI8: SLC12total | AK8: SLC11 | AM8: SLC12
B9: ALO-V | M9: ALO-V | Z9: alo | AA9: 0.34 | AB9: 0.34 | AC9: 8.5 | AE9: =F9*AA9 -> 0 | AF9: =F9*AB9 -> 0 | AH9: =Q9*AA9 -> 0 | AI9: =Q9*AB9 -> 0
B10: ALN-V | M10: ALN-V | Z10: lo | AA10: 0.45 | AB10: 0.7 | AC10: 9.6 | AE10: =F10*AA10 -> 0 | AF10: =F10*AB10 -> 0 | AH10: =Q10*AA10 -> 0 | AI10: =Q10*AB10 -> 0
B11: ALK-V | M11: ALK-V | Z11: alk | AA11: 0.4 | AB11: 10.1 | AC11: 10.1 | AE11: 0 | AF11: 0 | AH11: 0 | AI11: 0
B12: ALG-V | M12: ALG-V | Z12: alg | AA12: 0.4 | AB12: 0.54 | AC12: 17.1 | AE12: 0 | AF12: 0 | AH12: 0 | AI12: 0
B13: ATJ-EA | M13: ATJ-EA | Z13: atj | AA13: 0.35 | AB13: 0.35 | AC13: 17.1 | AE13: 0 | AF13: 0 | AH13: 0 | AI13: 0
B14: ATG-EA | M14: ATG-EA | Z14: atg | AA14: 0.5 | AB14: 0.8 | AC14: 10.1 | AE14: 0 | AF14: 0 | AH14: 0 | AI14: 0
B15: ACA-V | M15: ACA-V | Z15: aca | AA15: 0.45 | AB15: 0.6 | AC15: 19.1 | AE15: 0 | AF15: 0 | AH15: 0 | AI15: 0
B16: ACC-V | M16: ACC-V | Z16: acc | AA16: 0.45 | AB16: 0.65 | AC16: 8.3 | AE16: 0 | AF16: 0 | AH16: 0 | AI16: 0
B17: ACE-V | M17: ACE-V | Z17: ace | AA17: 0.45 | AB17: 0.7 | AC17: 10.1 | AE17: 0 | AF17: 0 | AH17: 0 | AI17: 0
B18: ACD-V | M18: ACD-V | Z18: acd | AA18: 0.6 | AB18: 0.7 | AC18: 10.1 | AE18: 0 | AF18: 0 | AH18: 0 | AI18: 0
AE19: 0 | AF19: 0 | AH19: 0 | AI19: 0
AE20: 0 | AF20: 0 | AH20: 0 | AI20: 0
B21: DH-100A | M21: DH-100 | Z21: dh100 | AA21: 0.45 | AB21: 0.75 | AC21: 10.1 | AE21: 0 | AF21: 0 | AH21: 0 | AI21: 0 | AK21: 2 | AL21: =F21*AK21 -> 0 | AM21: =Q21*AK21 -> 0
B22: DH-99 | M22: DH-99 | Z22: dh99 | AA22: 0.45 | AB22: 0.75 | AC22: 10.1 | AE22: 0 | AF22: 0 | AH22: 0 | AI22: 0 | AK22: 2 | AL22: =F22*AK22 -> 0 | AM22: =Q22*AK22 -> 0
B23: DH-98 | M23: DH-98 | Z23: dh98 | AA23: 0.45 | AB23: 0.75 | AC23: 10.1 | AE23: 0 | AF23: 0 | AH23: 0 | AI23: 0 | AK23: 2 | AL23: 0 | AM23: 0
B24: AMS | M24: AMS | Z24: ams | AA24: 0.45 | AB24: 0.75 | AC24: 5.2 | AE24: 0 | AF24: 0 | AH24: 0 | AI24: 0 | AM24: 0
B25: CZM | M25: CZM | Z25: czm | AA25: 0.45 | AB25: 0.75 | AC25: 4.3 | AE25: 0 | AF25: 0 | AH25: 0 | AI25: 0 | AM25: 0
B26: FRCME | M26: FRCME | Z26: frcme | AA26: 0.6 | AB26: 0.95 | AC26: 0.95 | AE26: 0 | AF26: 0 | AH26: 0 | AI26: 0 | AM26: 0
B27: FRCMA | M27: FRCMA | Z27: frcma | AA27: 0.65 | AB27: 1 | AC27: 5.1 | AE27: 0 | AF27: 0 | AH27: 0 | AI27: 0 | AM27: 0
B28: FRCMA-I | M28: FRCMA-I | Z28: frcma-i | AA28: 0.8 | AB28: 1.1 | AC28: 5.1 | AE28: 0 | AF28: 0 | AH28: 0 | AI28: 0 | AM28: 0
B29: FRCME-M | M29: FRCME-M | Z29: frcme-m | AA29: 0.6 | AB29: 0.9 | AC29: 0.95 | AE29: 0 | AF29: 0 | AH29: 0 | AI29: 0 | AM29: 0
B30: FRCME-P | M30: FRCME-P | Z30: frcme-p | AA30: 0.6 | AB30: 0.9 | AC30: 0.95 | AE30: 0 | AF30: 0 | AH30: 0 | AI30: 0 | AM30: 0
B31: DIMM | M31: DIMM | Z31: dimm | AA31: 1.05 | AB31: 1.1 | AC31: 5.2 | AE31: 0 | AF31: 0 | AH31: 0 | AI31: 0 | AK31: 3 | AL31: =F31*AK31 -> 0 | AM31: 0
B32: R2M | M32: R2M | Z32: r2m | AA32: 0.4 | AB32: 0.4 | AC32: 0.4 | AE32: 0 | AF32: 0 | AH32: 0 | AI32: 0 | AK32: 3 | AL32: =F32*AK32 -> 0 | AM32: 0
B33: R2M-L | M33: R2M-L | Z33: r2ml | AA33: 0.55 | AB33: 0.85 | AC33: 0.85 | AE33: 0 | AF33: 0 | AH33: 0 | AI33: 0 | AK33: 3 | AL33: 0 | AM33: 0
B34: R2M-LI | M34: R2M-LI | Z34: r2mli | AA34: 0.55 | AB34: 0.85 | AC34: 0.85 | AE34: 0 | AF34: 0 | AH34: 0 | AI34: 0 | AK34: 3 | AL34: 0 | AM34: 0
B35: R2M-H | M35: R2M-H | Z35: r2mh | AA35: 0.55 | AB35: 0.85 | AC35: 0.85 | AE35: 0 | AF35: 0 | AH35: 0 | AI35: 0 | AK35: 3 | AL35: 0 | AM35: 0
B36: R2M-HI | M36: R2M-HI | Z36: r2mhi | AA36: 0.55 | AB36: 0.85 | AC36: 0.85 | AE36: 0 | AF36: 0 | AH36: 0 | AI36: 0 | AK36: 3 | AL36: 0 | AM36: 0
B37: SOM | M37: SOM | Z37: som | AA37: 0.2 | AB37: 0.15 | AC37: 0.15 | AE37: 0 | AF37: 0 | AH37: 0 | AI37: 0 | AK37: 2 | AL37: 0 | AM37: 0
B38: SOM-A | M38: SOM-A | Z38: soma | AA38: 0.45 | AB38: 0.8 | AC38: 0.8 | AE38: 0 | AF38: 0 | AH38: 0 | AI38: 0 | AK38: 2 | AL38: 0 | AM38: 0
B39: SOM-AI | M39: SOM-AI | Z39: somai | AA39: 0.45 | AB39: 0.8 | AC39: 0.8 | AE39: 0 | AF39: 0 | AH39: 0 | AI39: 0 | AK39: 2 | AL39: 0 | AM39: 0
B40: ASB/ASB7 | M40: ASB/ASB7 | Z40: asb | AA40: 0.12 | AB40: 0.12 | AC40: 0.12 | AE40: 0 | AF40: 0 | AH40: 0 | AI40: 0 | AM40: 0
B41: ASBL/ASBL7 | M41: ASBL/ASBL7 | Z41: asbl | AA41: 0.4 | AB41: 0.65 | AC41: 0.65 | AE41: 0 | AF41: 0 | AH41: 0 | AI41: 0 | AM41: 0
B42: MIOM (all) | M42: MIOM (all) | Z42: miom | AA42: 1.05 | AB42: 1.1 | AC42: 4.3 | AE42: 0 | AF42: 0 | AH42: 0 | AI42: 0 | AK42: 7 | AL42: 0 | AM42: 0
B43: CLIM1 | M43: CLIM1 | Z43: clim1 | AA43: 0.5 | AB43: 6 | AC43: 6 | AE43: 0 | AF43: 0 | AH43: 0 | AI43: 0 | AK43: 6 | AL43: 0 | AM43: 0
B44: CLIM2 | M44: CLIM2 | Z44: clim2 | AA44: 0.55 | AB44: 6 | AC44: 6 | AE44: 0 | AF44: 0 | AH44: 0 | AI44: 0 | AK44: 11 | AL44: 0 | AM44: 0
B45: SCI Module | M45: SCI Module | Z45: sci | AA45: 0.3 | AB45: 10 | AC45: 10 | AE45: 0 | AF45: =IF(F45>0,20,0) -> 0 | AH45: 0 | AI45: =IF(Q45>0,20,0) -> 0
B46: SCI-B4 / -B6 | M46: SCI-B4 / -B6 | Z46: sci bases | AA46: 0.3 | AB46: 10 | AC46: 10 | AE46: 0 | AF46: =IF(F46>0,20,0) -> 0 | AH46: 0 | AI46: =IF(Q46>0,20,0) -> 0
AL50: SLC1 | AM50: SLC2 | AN50: <- total subaddresses
AA51: SLC11 total | AB51: =F52 -> 0 | AC51: SLC12 total | AD51: =Q52 -> 0 | AE51: =SUM(AE9:AE49) -> 0 | AF51: =IF(SUM(AF9:AF49)=0,0,SUM(AF9:AF49)+0.8) -> 0 | AH51: =SUM(AH9:AH49) -> 0 | AI51: =IF(SUM(AI9:AI49)=0,0,SUM(AI9:AI49)+0.8) -> 0 | AL51: =SUM(AL15:AL44) -> 0 | AM51: =SUM(AM15:AM44) -> 0
B52: Device Total - | F52: =SUM(F9:H39,F42,F43,F44) -> 0 | M52: Device Total - | Q52: =SUM(Q9:S39,Q42,Q43,Q44) -> 0
B54: Total Bases - | F54: =SUM(F40,F41,F46) -> 0 | M54: Total Bases - | Q54: =SUM(Q40,Q41,Q46) -> 0 | AA54: SLC11 | AC54: SLC12
Z55: total detectors | AA55: =SUM(F9:H18) -> 0 | AC55: =SUM(Q9:S18) -> 0
B56: =IF(AA56>AA55,"You have more Sounder Bases/SCI Bases than Detectors on SLC 11!","") ->  | Z56: total bases | AA56: =F54 -> 0 | AC56: =Q54 -> 0
B57: =IF(AC56>AC55,"You have more Sounder Bases/SCI Bases than Detectors on SLC 12!","") ->  | Z57: total device count | AA57: =F52 -> 0 | AC57: =Q52 -> 0
B58: =IF(F52>127,"You have exceeded 127 Devices on SLC 11!","") -> 
B59: =IF(Q52>127,"You have exceeded 127 Devices on SLC 12!","") -> 
B60: =IF(AL51>400,"You have exceeded 400 sub-addresses on SLC 11!","") -> 
B61: =IF(AM51>400,"You have exceeded 400 sub-addresses on SLC 12!","") -> 

Sheet SLC13_and_SLC14
B2: Devices for SLC 13 and SLC 14
B4: =Calcs!F8 -> Latitude | AB4: all current in milliamps
B7: SLC 13 | M7: SLC 14 | AA7: standby | AB7: alarm | AC7: Maximum | AE7: standby | AF7: alarm | AH7: standby | AI7: alarm | AK7: sub-addresses
B8: Device Type | F8: Quantity | M8: Device Type | Q8: Quantity | AA8: current | AB8: current | AC8: current | AE8: SLC13total | AF8: SLC13total | AH8: SLC14total | AI8: SLC14total | AK8: SLC13 | AM8: SLC14
B9: ALO-V | M9: ALO-V | Z9: alo | AA9: 0.34 | AB9: 0.34 | AC9: 8.5 | AE9: =F9*AA9 -> 0 | AF9: =F9*AB9 -> 0 | AH9: =Q9*AA9 -> 0 | AI9: =Q9*AB9 -> 0
B10: ALN-V | M10: ALN-V | Z10: aln | AA10: 0.45 | AB10: 0.7 | AC10: 9.6 | AE10: =F10*AA10 -> 0 | AF10: =F10*AB10 -> 0 | AH10: =Q10*AA10 -> 0 | AI10: =Q10*AB10 -> 0
B11: ALK-V | M11: ALK-V | Z11: alk | AA11: 0.4 | AB11: 10.1 | AC11: 10.1 | AE11: 0 | AF11: 0 | AH11: 0 | AI11: 0
B12: ALG-V | M12: ALG-V | Z12: alg | AA12: 0.4 | AB12: 0.54 | AC12: 17.1 | AE12: 0 | AF12: 0 | AH12: 0 | AI12: 0
B13: ATJ-EA | M13: ATJ-EA | Z13: atj | AA13: 0.35 | AB13: 0.35 | AC13: 17.1 | AE13: 0 | AF13: 0 | AH13: 0 | AI13: 0
B14: ATG-EA | M14: ATG-EA | Z14: atg | AA14: 0.5 | AB14: 0.8 | AC14: 10.1 | AE14: 0 | AF14: 0 | AH14: 0 | AI14: 0
B15: ACA-V | M15: ACA-V | Z15: aca | AA15: 0.45 | AB15: 0.6 | AC15: 19.1 | AE15: 0 | AF15: 0 | AH15: 0 | AI15: 0
B16: ACC-V | M16: ACC-V | Z16: acc | AA16: 0.45 | AB16: 0.65 | AC16: 8.3 | AE16: 0 | AF16: 0 | AH16: 0 | AI16: 0
B17: ACE-V | M17: ACE-V | Z17: ace | AA17: 0.45 | AB17: 0.7 | AC17: 10.1 | AE17: 0 | AF17: 0 | AH17: 0 | AI17: 0
B18: ACD-V | M18: ACD-V | Z18: acd | AA18: 0.6 | AB18: 0.7 | AC18: 10.1 | AE18: 0 | AF18: 0 | AH18: 0 | AI18: 0
AE19: 0 | AF19: 0 | AH19: 0 | AI19: 0
AE20: 0 | AF20: 0 | AH20: 0 | AI20: 0
B21: DH-100A | M21: DH-100 | Z21: dh100 | AA21: 0.45 | AB21: 0.75 | AC21: 10.1 | AE21: 0 | AF21: 0 | AH21: 0 | AI21: 0 | AK21: 2 | AL21: =F21*AK21 -> 0 | AM21: =Q21*AK21 -> 0
B22: DH-99 | M22: DH-99 | Z22: dh99 | AA22: 0.45 | AB22: 0.75 | AC22: 10.1 | AE22: 0 | AF22: 0 | AH22: 0 | AI22: 0 | AK22: 2 | AL22: =F22*AK22 -> 0 | AM22: =Q22*AK22 -> 0
B23: DH-98 | M23: DH-98 | Z23: dh98 | AA23: 0.45 | AB23: 0.75 | AC23: 10.1 | AE23: 0 | AF23: 0 | AH23: 0 | AI23: 0 | AK23: 2 | AL23: 0 | AM23: 0
B24: AMS | M24: AMS | Z24: ams | AA24: 0.45 | AB24: 0.75 | AC24: 5.2 | AE24: 0 | AF24: 0 | AH24: 0 | AI24: 0 | AM24: 0
B25: CZM | M25: CZM | Z25: czm | AA25: 0.45 | AB25: 0.75 | AC25: 4.3 | AE25: 0 | AF25: 0 | AH25: 0 | AI25: 0 | AM25: 0
B26: FRCME | M26: FRCME | Z26: frcme | AA26: 0.6 | AB26: 0.95 | AC26: 0.95 | AE26: 0 | AF26: 0 | AH26: 0 | AI26: 0 | AM26: 0
B27: FRCMA | M27: FRCMA | Z27: frcma | AA27: 0.65 | AB27: 1 | AC27: 5.1 | AE27: 0 | AF27: 0 | AH27: 0 | AI27: 0 | AM27: 0
B28: FRCMA-I | M28: FRCMA-I | Z28: frcma-i | AA28: 0.8 | AB28: 1.1 | AC28: 5.1 | AE28: 0 | AF28: 0 | AH28: 0 | AI28: 0 | AM28: 0
B29: FRCME-M | M29: FRCME-M | Z29: frcme-m | AA29: 0.6 | AB29: 0.9 | AC29: 0.95 | AE29: 0 | AF29: 0 | AH29: 0 | AI29: 0 | AM29: 0
B30: FRCME-P | M30: FRCME-P | Z30: frcme-p | AA30: 0.6 | AB30: 0.9 | AC30: 0.95 | AE30: 0 | AF30: 0 | AH30: 0 | AI30: 0 | AM30: 0
B31: DIMM | M31: DIMM | Z31: dimm | AA31: 1.05 | AB31: 1.1 | AC31: 5.2 | AE31: 0 | AF31: 0 | AH31: 0 | AI31: 0 | AK31: 3 | AL31: =F31*AK31 -> 0 | AM31: 0
B32: R2M | M32: R2M | Z32: r2m | AA32: 0.4 | AB32: 0.4 | AC32: 0.4 | AE32: 0 | AF32: 0 | AH32: 0 | AI32: 0 | AK32: 3 | AL32: =F32*AK32 -> 0 | AM32: 0
B33: R2M-L | M33: R2M-L | Z33: r2ml | AA33: 0.55 | AB33: 0.85 | AC33: 0.85 | AE33: 0 | AF33: 0 | AH33: 0 | AI33: 0 | AK33: 3 | AL33: 0 | AM33: 0
B34: R2M-LI | M34: R2M-LI | Z34: r2mli | AA34: 0.55 | AB34: 0.85 | AC34: 0.85 | AE34: 0 | AF34: 0 | AH34: 0 | AI34: 0 | AK34: 3 | AL34: 0 | AM34: 0
B35: R2M-H | M35: R2M-H | Z35: r2mh | AA35: 0.55 | AB35: 0.85 | AC35: 0.85 | AE35: 0 | AF35: 0 | AH35: 0 | AI35: 0 | AK35: 3 | AL35: 0 | AM35: 0
B36: R2M-HI | M36: R2M-HI | Z36: r2mhi | AA36: 0.55 | AB36: 0.85 | AC36: 0.85 | AE36: 0 | AF36: 0 | AH36: 0 | AI36: 0 | AK36: 3 | AL36: 0 | AM36: 0
B37: SOM | M37: SOM | Z37: som | AA37: 0.2 | AB37: 0.15 | AC37: 0.15 | AE37: 0 | AF37: 0 | AH37: 0 | AI37: 0 | AK37: 2 | AL37: 0 | AM37: 0
B38: SOM-A | M38: SOM-A | Z38: soma | AA38: 0.45 | AB38: 0.8 | AC38: 0.8 | AE38: 0 | AF38: 0 | AH38: 0 | AI38: 0 | AK38: 2 | AL38: 0 | AM38: 0
B39: SOM-AI | M39: SOM-AI | Z39: somai | AA39: 0.45 | AB39: 0.8 | AC39: 0.8 | AE39: 0 | AF39: 0 | AH39: 0 | AI39: 0 | AK39: 2 | AL39: 0 | AM39: 0
B40: ASB/ASB7 | M40: ASB/ASB7 | Z40: asb | AA40: 0.12 | AB40: 0.12 | AC40: 0.12 | AE40: 0 | AF40: 0 | AH40: 0 | AI40: 0 | AM40: 0
B41: ASBL/ASBL7 | M41: ASBL/ASBL7 | Z41: asbl | AA41: 0.4 | AB41: 0.65 | AC41: 0.65 | AE41: 0 | AF41: 0 | AH41: 0 | AI41: 0 | AM41: 0
B42: MIOM (all) | M42: MIOM (all) | Z42: miom | AA42: 1.05 | AB42: 1.1 | AC42: 4.3 | AE42: 0 | AF42: 0 | AH42: 0 | AI42: 0 | AK42: 7 | AL42: 0 | AM42: 0
B43: CLIM1 | M43: CLIM1 | Z43: clim1 | AA43: 0.5 | AB43: 6 | AC43: 6 | AE43: 0 | AF43: 0 | AH43: 0 | AI43: 0 | AK43: 6 | AL43: 0 | AM43: 0
B44: CLIM2 | M44: CLIM2 | Z44: clim2 | AA44: 0.55 | AB44: 6 | AC44: 6 | AE44: 0 | AF44: 0 | AH44: 0 | AI44: 0 | AK44: 11 | AL44: 0 | AM44: 0
B45: SCI Module | M45: SCI Module | Z45: sci | AA45: 0.3 | AB45: 10 | AC45: 10 | AE45: 0 | AF45: =IF(F45>0,20,0) -> 0 | AH45: 0 | AI45: =IF(Q45>0,20,0) -> 0
B46: SCI-B4 / -B6 | M46: SCI-B4 / -B6 | Z46: sci bases | AA46: 0.3 | AB46: 10 | AC46: 10 | AE46: 0 | AF46: =IF(F46>0,20,0) -> 0 | AH46: 0 | AI46: =IF(Q46>0,20,0) -> 0
AL50: SLC1 | AM50: SLC2 | AN50: <- total subaddresses
AA51: SLC13 total | AB51: =F52 -> 0 | AC51: SLC14 total | AD51: =Q52 -> 0 | AE51: =SUM(AE9:AE49) -> 0 | AF51: =IF(SUM(AF9:AF49)=0,0,SUM(AF9:AF49)+0.8) -> 0 | AH51: =SUM(AH9:AH49) -> 0 | AI51: =IF(SUM(AI9:AI49)=0,0,SUM(AI9:AI49)+0.8) -> 0 | AL51: =SUM(AL15:AL44) -> 0 | AM51: =SUM(AM15:AM44) -> 0
B52: Device Total - | F52: =SUM(F9:H39,F42,F43,F44) -> 0 | M52: Device Total - | Q52: =SUM(Q9:S39,Q42,Q43,Q44) -> 0
B54: Total Bases - | F54: =SUM(F40,F41,F46) -> 0 | M54: Total Bases - | Q54: =SUM(Q40,Q41,Q46) -> 0 | AA54: SLC13 | AC54: SLC14
Z55: total detectors | AA55: =SUM(F9:H18) -> 0 | AC55: =SUM(Q9:S18) -> 0
B56: =IF(AA56>AA55,"You have more Sounder Bases/SCI Bases than Detectors on SLC 13!","") ->  | Z56: total bases | AA56: =F54 -> 0 | AC56: =Q54 -> 0
B57: =IF(AC56>AC55,"You have more Sounder Bases/SCI Bases than Detectors on SLC 14!","") ->  | Z57: total device count | AA57: =F52 -> 0 | AC57: =Q52 -> 0
B58: =IF(F52>127,"You have exceeded 127 Devices on SLC 13!","") -> 
B59: =IF(Q52>127,"You have exceeded 127 Devices on SLC 14!","") -> 
B60: =IF(AL51>400,"You have exceeded 400 sub-addresses on SLC 13!","") -> 
B61: =IF(AM51>400,"You have exceeded 400 sub-addresses on SLC 14!","") -> 

Sheet SLC15_and_SLC16
B2: Devices for SLC 15 and SLC 16
B4: =Calcs!F8 -> Latitude | AB4: all current in milliamps
B7: SLC 15 | M7: SLC 16 | AA7: standby | AB7: alarm | AC7: Maximum | AE7: standby | AF7: alarm | AH7: standby | AI7: alarm | AK7: sub-addresses
B8: Device Type | F8: Quantity | M8: Device Type | Q8: Quantity | AA8: current | AB8: current | AC8: current | AE8: SLC15total | AF8: SLC15total | AH8: SLC16total | AI8: SLC16total | AK8: SLC15 | AM8: SLC16
B9: ALO-V | M9: ALO-V | Z9: alo | AA9: 0.34 | AB9: 0.34 | AC9: 8.5 | AE9: =F9*AA9 -> 0 | AF9: =F9*AB9 -> 0 | AH9: =Q9*AA9 -> 0 | AI9: =Q9*AB9 -> 0
B10: ALN-V | M10: ALN-V | Z10: aln | AA10: 0.45 | AB10: 0.7 | AC10: 9.6 | AE10: =F10*AA10 -> 0 | AF10: =F10*AB10 -> 0 | AH10: =Q10*AA10 -> 0 | AI10: =Q10*AB10 -> 0
B11: ALK-V | M11: ALK-V | Z11: alk | AA11: 0.4 | AB11: 10.1 | AC11: 10.1 | AE11: 0 | AF11: 0 | AH11: 0 | AI11: 0
B12: ALG-V | M12: ALG-V | Z12: alg | AA12: 0.4 | AB12: 0.54 | AC12: 17.1 | AE12: 0 | AF12: 0 | AH12: 0 | AI12: 0
B13: ATJ-EA | M13: ATJ-EA | Z13: atj | AA13: 0.35 | AB13: 0.35 | AC13: 17.1 | AE13: 0 | AF13: 0 | AH13: 0 | AI13: 0
B14: ATG-EA | M14: ATG-EA | Z14: atg | AA14: 0.5 | AB14: 0.8 | AC14: 10.1 | AE14: 0 | AF14: 0 | AH14: 0 | AI14: 0
B15: ACA-V | M15: ACA-V | Z15: aca | AA15: 0.45 | AB15: 0.6 | AC15: 19.1 | AE15: 0 | AF15: 0 | AH15: 0 | AI15: 0
B16: ACC-V | M16: ACC-V | Z16: acc | AA16: 0.45 | AB16: 0.65 | AC16: 8.3 | AE16: 0 | AF16: 0 | AH16: 0 | AI16: 0
B17: ACE-V | M17: ACE-V | Z17: ace | AA17: 0.45 | AB17: 0.7 | AC17: 10.1 | AE17: 0 | AF17: 0 | AH17: 0 | AI17: 0
B18: ACD-V | M18: ACD-V | Z18: acd | AA18: 0.6 | AB18: 0.7 | AC18: 10.1 | AE18: 0 | AF18: 0 | AH18: 0 | AI18: 0
AE19: 0 | AF19: 0 | AH19: 0 | AI19: 0
AE20: 0 | AF20: 0 | AH20: 0 | AI20: 0
B21: DH-100A | M21: DH-100 | Z21: dh100 | AA21: 0.45 | AB21: 0.75 | AC21: 10.1 | AE21: 0 | AF21: 0 | AH21: 0 | AI21: 0 | AK21: 2 | AL21: =F21*AK21 -> 0 | AM21: =Q21*AK21 -> 0
B22: DH-99 | M22: DH-99 | Z22: dh99 | AA22: 0.45 | AB22: 0.75 | AC22: 10.1 | AE22: 0 | AF22: 0 | AH22: 0 | AI22: 0 | AK22: 2 | AL22: =F22*AK22 -> 0 | AM22: =Q22*AK22 -> 0
B23: DH-98 | M23: DH-98 | Z23: dh98 | AA23: 0.45 | AB23: 0.75 | AC23: 10.1 | AE23: 0 | AF23: 0 | AH23: 0 | AI23: 0 | AK23: 2 | AL23: 0 | AM23: 0
B24: AMS | M24: AMS | Z24: ams | AA24: 0.45 | AB24: 0.75 | AC24: 5.2 | AE24: 0 | AF24: 0 | AH24: 0 | AI24: 0 | AM24: 0
B25: CZM | M25: CZM | Z25: czm | AA25: 0.45 | AB25: 0.75 | AC25: 4.3 | AE25: 0 | AF25: 0 | AH25: 0 | AI25: 0 | AM25: 0
B26: FRCME | M26: FRCME | Z26: frcme | AA26: 0.6 | AB26: 0.95 | AC26: 0.95 | AE26: 0 | AF26: 0 | AH26: 0 | AI26: 0 | AM26: 0
B27: FRCMA | M27: FRCMA | Z27: frcma | AA27: 0.65 | AB27: 1 | AC27: 5.1 | AE27: 0 | AF27: 0 | AH27: 0 | AI27: 0 | AM27: 0
B28: FRCMA-I | M28: FRCMA-I | Z28: frcma-i | AA28: 0.8 | AB28: 1.1 | AC28: 5.1 | AE28: 0 | AF28: 0 | AH28: 0 | AI28: 0 | AM28: 0
B29: FRCME-M | M29: FRCME-M | Z29: frcme-m | AA29: 0.6 | AB29: 0.9 | AC29: 0.95 | AE29: 0 | AF29: 0 | AH29: 0 | AI29: 0 | AM29: 0
B30: FRCME-P | M30: FRCME-P | Z30: frcme-p | AA30: 0.6 | AB30: 0.9 | AC30: 0.95 | AE30: 0 | AF30: 0 | AH30: 0 | AI30: 0 | AM30: 0
B31: DIMM | M31: DIMM | Z31: dimm | AA31: 1.05 | AB31: 1.1 | AC31: 5.2 | AE31: 0 | AF31: 0 | AH31: 0 | AI31: 0 | AK31: 3 | AL31: =F31*AK31 -> 0 | AM31: 0
B32: R2M | M32: R2M | Z32: r2m | AA32: 0.4 | AB32: 0.4 | AC32: 0.4 | AE32: 0 | AF32: 0 | AH32: 0 | AI32: 0 | AK32: 3 | AL32: =F32*AK32 -> 0 | AM32: 0
B33: R2M-L | M33: R2M-L | Z33: r2ml | AA33: 0.55 | AB33: 0.85 | AC33: 0.85 | AE33: 0 | AF33: 0 | AH33: 0 | AI33: 0 | AK33: 3 | AL33: 0 | AM33: 0
B34: R2M-LI | M34: R2M-LI | Z34: r2mli | AA34: 0.55 | AB34: 0.85 | AC34: 0.85 | AE34: 0 | AF34: 0 | AH34: 0 | AI34: 0 | AK34: 3 | AL34: 0 | AM34: 0
B35: R2M-H | M35: R2M-H | Z35: r2mh | AA35: 0.55 | AB35: 0.85 | AC35: 0.85 | AE35: 0 | AF35: 0 | AH35: 0 | AI35: 0 | AK35: 3 | AL35: 0 | AM35: 0
B36: R2M-HI | M36: R2M-HI | Z36: r2mhi | AA36: 0.55 | AB36: 0.85 | AC36: 0.85 | AE36: 0 | AF36: 0 | AH36: 0 | AI36: 0 | AK36: 3 | AL36: 0 | AM36: 0
B37: SOM | M37: SOM | Z37: som | AA37: 0.2 | AB37: 0.15 | AC37: 0.15 | AE37: 0 | AF37: 0 | AH37: 0 | AI37: 0 | AK37: 2 | AL37: 0 | AM37: 0
B38: SOM-A | M38: SOM-A | Z38: soma | AA38: 0.45 | AB38: 0.8 | AC38: 0.8 | AE38: 0 | AF38: 0 | AH38: 0 | AI38: 0 | AK38: 2 | AL38: 0 | AM38: 0
B39: SOM-AI | M39: SOM-AI | Z39: somai | AA39: 0.45 | AB39: 0.8 | AC39: 0.8 | AE39: 0 | AF39: 0 | AH39: 0 | AI39: 0 | AK39: 2 | AL39: 0 | AM39: 0
B40: ASB/ASB7 | M40: ASB/ASB7 | Z40: asb | AA40: 0.12 | AB40: 0.12 | AC40: 0.12 | AE40: 0 | AF40: 0 | AH40: 0 | AI40: 0 | AM40: 0
B41: ASBL/ASBL7 | M41: ASBL/ASBL7 | Z41: asbl | AA41: 0.4 | AB41: 0.65 | AC41: 0.65 | AE41: 0 | AF41: 0 | AH41: 0 | AI41: 0 | AM41: 0
B42: MIOM (all) | M42: MIOM (all) | Z42: miom | AA42: 1.05 | AB42: 1.1 | AC42: 4.3 | AE42: 0 | AF42: 0 | AH42: 0 | AI42: 0 | AK42: 7 | AL42: 0 | AM42: 0
B43: CLIM1 | M43: CLIM1 | Z43: clim1 | AA43: 0.5 | AB43: 6 | AC43: 6 | AE43: 0 | AF43: 0 | AH43: 0 | AI43: 0 | AK43: 6 | AL43: 0 | AM43: 0
B44: CLIM2 | M44: CLIM2 | Z44: clim2 | AA44: 0.55 | AB44: 6 | AC44: 6 | AE44: 0 | AF44: 0 | AH44: 0 | AI44: 0 | AK44: 11 | AL44: 0 | AM44: 0
B45: SCI Module | M45: SCI Module | Z45: sci | AA45: 0.3 | AB45: 10 | AC45: 10 | AE45: 0 | AF45: =IF(F45>0,20,0) -> 0 | AH45: 0 | AI45: =IF(Q45>0,20,0) -> 0
B46: SCI-B4 / -B6 | M46: SCI-B4 / -B6 | Z46: sci bases | AA46: 0.3 | AB46: 10 | AC46: 10 | AE46: 0 | AF46: =IF(F46>0,20,0) -> 0 | AH46: 0 | AI46: =IF(Q46>0,20,0) -> 0
AL50: SLC1 | AM50: SLC2 | AN50: <- total subaddresses
AA51: SLC15total | AB51: =F52 -> 0 | AC51: SLC16 total | AD51: =Q52 -> 0 | AE51: =SUM(AE9:AE49) -> 0 | AF51: =IF(SUM(AF9:AF49)=0,0,SUM(AF9:AF49)+0.8) -> 0 | AH51: =SUM(AH9:AH49) -> 0 | AI51: =IF(SUM(AI9:AI49)=0,0,SUM(AI9:AI49)+0.8) -> 0 | AL51: =SUM(AL15:AL44) -> 0 | AM51: =SUM(AM15:AM44) -> 0
B52: Device Total - | F52: =SUM(F9:H39,F42,F43,F44) -> 0 | M52: Device Total - | Q52: =SUM(Q9:S39,Q42,Q43,Q44) -> 0
B54: Total Bases - | F54: =SUM(F40,F41,F46) -> 0 | M54: Total Bases - | Q54: =SUM(Q40,Q41,Q46) -> 0 | AA54: SLC15 | AC54: SLC16
Z55: total detectors | AA55: =SUM(F9:H18) -> 0 | AC55: =SUM(Q9:S18) -> 0
B56: =IF(AA56>AA55,"You have more Sounder Bases/SCI Bases than Detectors on SLC 15!","") ->  | Z56: total bases | AA56: =F54 -> 0 | AC56: =Q54 -> 0
B57: =IF(AC56>AC55,"You have more Sounder Bases/SCI Bases than Detectors on SLC 16!","") ->  | Z57: total device count | AA57: =F52 -> 0 | AC57: =Q52 -> 0
B58: =IF(F52>127,"You have exceeded 127 Devices on SLC 15!","") -> 
B59: =IF(Q52>127,"You have exceeded 127 Devices on SLC 16!","") -> 
B60: =IF(AL51>400,"You have exceeded 400 sub-addresses on SLC 15!","") -> 
B61: =IF(AM51>400,"You have exceeded 400 sub-addresses on SLC 16!","") -> 
